Cogmind - Beta 10.1 @@@ ROGUE MODE // 2020.10.29 @ 13:21:23 Player: Boris Result: Destroyed by G-67 Veteran with Electrolaser Performance ------------- Evolutions (7) 3500 Regions Visited (30) 6000 Robots Destroyed (489) 2445 Value Destroyed (21076) 21076 Prototype IDs (66) 1320 Alien Tech Used (4) 800 Bonus (8652) 8652 TOTAL SCORE: 43793 Bonus ------- High Alert Combat Kills 2153 Follower Combat Kills 2047 Entered Garrisons 200 Network Hubs Disabled 200 Met Data Miner 300 Destroyed Z-Imprinter 1000 Triggered Deep Caves Wall 500 Exposed GOLEM Chamber 500 Met Warlord at Base 500 MAIN.C Attacked Warlord 500 Used Core Reset Matrix 3000 Met Sigix 2000 Friendly Fire -4248 Cogmind --------- Core Integrity 0/1300 Matter 243/300 Energy 816/850 System Corruption 4% Temperature Cool (21) Movement Core (1650) Ox32 Location -3/Section 7 Parts ------- > --- POWER (2) -------- Backup Power III Quantum Reactor > --- PROPULSION (4) --- (None) > --- UTILITY (12) ----- Advanced Cooling System Experimental Coolant Injector Large Storage Unit Large Storage Unit Large Storage Unit Energy Well Improved Signal Interpreter Experimental Target Analyzer Hacking Suite System Shield Advanced System Shield > --- WEAPON (3) ------- Quantum Rifle Hypercooled Linear Accelerator > --- INVENTORY (22) --- Light Particle Reactor Combat Antigrav System Experimental Coolant Injector Advanced Matter Compressor (0) Gravity Neutralizing Apparatus Zionite Metafield Generator Improved Armor Integrity Analyzer Improved Weapon Cycler Zionite Weapon Casing Advanced Component Analysis Suite Dimensional Node Initializer Transdimensional Reconstructor Subatomic Replicator Vortex Driver Vortex Driver Core Cannon Hypercooled Linear Accelerator CR-A16's Behemoth Slayer Sigix Containment Pod Peak State ------------ > --- POWER ------------ Micro Fission Core Particle Reactor > --- PROPULSION ------- Combat Antigrav System Combat Antigrav System Combat Antigrav System Combat Antigrav System > --- UTILITY ---------- Medium Storage Unit Large Storage Unit Large Storage Unit Assembled Biocell Array Zionite Metafield Generator Improved Signal Interpreter Experimental Target Analyzer Advanced Force Field Advanced Hacking Suite Advanced System Shield Matter Drive > --- WEAPON ----------- Coil Gun Railgun CR-A16's Behemoth Slayer > --- INVENTORY -------- Antigrav Array Zionite Biocell Gravity Neutralizing Apparatus Advanced Signal Interpreter Improved Armor Integrity Analyzer Precision Matter Filter Improved Weapon Cycler Zionite Weapon Casing Phase Redirector Advanced Component Analysis Suite Minesniffer Drone Bay Dimensional Node Initializer Quantum Rifle Vortex Driver Vortex Driver Core Cannon Heavy Shock Bomb Launcher Mini Smartbomb Launcher [Rating: 162] Favorites ----------- Power Ion Engine Engine Ion Engine Power Core Nuclear Core Reactor Compact Particle Reactor Propulsion Combat Airjet Treads Light Treads Leg Assembled Alloy Leg Wheel Wheel Hover Unit Combat Airjet Utility Large Storage Unit Device Experimental Sensor Array Storage Large Storage Unit Processor Advanced Signal Interpreter Hackware Advanced Hacking Suite Protection Centrium Medium Armor Plating Artifact Matter Drive Weapon Assembled Focal Cannon Energy Gun Advanced Beam Rifle Energy Cannon Assembled Focal Cannon Ballistic Gun Gauss Rifle Ballistic Cannon Hypercooled Linear Accelerator Launcher Mini Smartbomb Launcher Special Weapon Improved Plasma Cutter Impact Weapon Flail Slashing Weapon Mining Claw Piercing Weapon CR-A16's Behemoth Slayer Build | -11 -10 -10 -10 -9 -8 -7 -7 -7 -7 -6 -6 -6 -6 -6 -6 -5 -5 -5 -5 -5 -5 -4 -4 -4 -4 -3 -3 -3 -3 -3 ------- Run | Scr Mat Min Exi Min Mat Fac Low Low Dat Pro Fac Low Low Zio Dee Pro Fac Ext Cet Arc Hub Fac Upp Upp War Pro Res Gar Qua Sec Slots Evolved 14 | . . . . . 4 2 . . . . 2 . . . . . 2 . . . . 2 . . . . 2 . . . Power 1 | . . . . . . . . . . . . . . . . . 1 . . . . . . . . . . . . . Propulsion 2 | . . . . . . . . . . . 2 . . . . . . . . . . . . . . . . . . . Utility 10 | . . . . . 3 2 . . . . . . . . . . 1 . . . . 2 . . . . 2 . . . Weapon 1 | . . . . . 1 . . . . . . . . . . . . . . . . . . . . . . . . . Parts Attached 600 | 9 14 9 . 4 60 53 16 12 13 44 51 3 2 8 59 10 8 21 12 3 9 35 8 9 14 15 42 5 48 4 Power 42 | 1 2 1 . 1 3 2 . 1 . 2 2 . . . 5 2 . 4 1 . 1 4 . 1 1 1 4 . 3 . Engine 16 | 1 2 1 . 1 3 . . 1 . 1 2 . . . 2 1 . . . . . 1 . . . . . . . . Core 9 | . . . . . . 2 . . . 1 . . . . . 1 . 2 . . . . . 1 . . 1 . 1 . Reactor 17 | . . . . . . . . . . . . . . . 3 . . 2 1 . 1 3 . . 1 1 3 . 2 . Propulsion 94 | 4 3 2 . 1 11 6 1 1 4 . 7 . . . 10 3 2 5 1 1 2 5 2 1 5 2 7 . 8 . Treads 37 | 2 3 . . 1 9 4 1 1 1 . . . . . . . . 1 1 1 1 3 2 . . . . . 6 . Leg 30 | 2 . . . . 2 2 . . 3 . . . . . 1 3 2 4 . . 1 1 . 1 3 2 3 . . . Wheel 2 | . . 2 . . . . . . . . . . . . . . . . . . . . . . . . . . . . Hover 25 | . . . . . . . . . . . 7 . . . 9 . . . . . . 1 . . 2 . 4 . 2 . Flight . | . . . . . . . . . . . . . . . . . . . . . . . . . . . . . . . Utility 218 | 2 2 . . . 13 24 8 6 4 19 16 2 2 2 32 . 5 4 6 2 3 15 1 2 5 3 13 1 25 1 Device 96 | . . . . . 2 11 5 4 2 7 6 2 1 1 15 . 3 1 1 1 . 7 1 2 4 . 6 1 12 1 Storage 31 | 2 2 . . . 3 . 1 1 2 4 1 . . . 4 . 1 1 . . . 1 . . . . 2 . 6 . Processor 9 | . . . . . 3 1 . . . . 1 . . . . . . . . . . 1 . . 1 1 . . 1 . Hackware 13 | . . . . . . 1 . . . 1 2 . . 1 . . 1 . . 1 . 2 . . . 1 1 . 2 . Protection 67 | . . . . . 5 11 2 1 . 7 6 . 1 . 13 . . 2 5 . 3 4 . . . 1 4 . 2 . Artifact 2 | . . . . . . . . . . . . . . . . . . . . . . . . . . . . . 2 . Weapon 246 | 2 7 6 . 2 33 21 7 4 5 23 26 1 . 6 12 5 1 8 4 . 3 11 5 5 3 9 18 4 12 3 Energy Gun 56 | 1 . . . . 8 7 3 2 1 7 10 . . . 8 . . 1 . . . 1 . . 1 . 4 . . 2 Energy Cannon 30 | . 2 1 . . 5 3 1 . . 2 4 . . 1 1 . . 1 . . . 2 1 . 1 1 3 . 1 . Ballistic Gun 70 | 1 1 3 . 1 11 5 2 . 1 3 4 . . 2 1 . 1 4 3 . 2 5 . 3 1 5 6 1 4 . Ballistic Cannon 6 | . . . . . 1 . . . . . 1 . . . . . . . . . . . . . . . . . 4 . Launcher 59 | . . 1 . 1 5 6 . 2 2 10 6 1 . 1 1 5 . . 1 . . 2 2 2 . 3 4 2 1 1 Special Weapon 2 | . . . . . . . . . . . . . . . . . . 1 . . . . 1 . . . . . . . Impact Weapon 4 | . 2 . . . 2 . . . . . . . . . . . . . . . . . . . . . . . . . Slashing Weapon 4 | . 2 1 . . 1 . . . . . . . . . . . . . . . . . . . . . . . . . Piercing Weapon 15 | . . . . . . . 1 . 1 1 1 . . 2 1 . . 1 . . 1 1 1 . . . 1 1 2 . Special Melee Weapon . | . . . . . . . . . . . . . . . . . . . . . . . . . . . . . . . Unidentified Prototypes 51 | . . . . . 3 2 . 1 2 3 2 . . . 12 . 1 3 3 . . . . . 9 1 1 . 8 . Parts Lost 133 | . 1 3 . 1 13 7 . . 1 2 9 . . 1 17 4 1 7 . . . 15 3 1 . 4 11 2 24 6 Power 18 | . . . . . 1 . . . . . 1 . . . 2 3 . 1 . . . 3 . 1 . . 2 . 4 . Propulsion 32 | . . 1 . 1 3 4 . . . . . . . . 8 1 . 3 . . . 2 1 . . . . . 5 3 Utility 38 | . . . . . 3 1 . . . 2 3 . . . 3 . 1 . . . . 4 2 . . 2 5 2 9 1 Weapon 45 | . 1 2 . . 6 2 . . 1 . 5 . . 1 4 . . 3 . . . 6 . . . 2 4 . 6 2 Highest Loss Streak 7 | . 1 2 . 1 6 4 . . 1 1 4 . . 1 6 2 1 5 . . . 5 1 1 . 2 6 2 7 5 Average Slot Usage (%) 92 | . 97 98 100 99 97 98 93 100 96 97 93 100 100 99 88 87 87 90 90 88 89 84 80 87 93 92 93 93 82 90 Engine 3 | . 14 14 14 14 8 . . 4 7 4 5 6 6 6 1 . . . . . . . . . . . . . . 1 Core 1 | . . . . . . 6 7 2 . 2 . . . . . . . 1 . . . . . 1 4 . . 4 1 . Reactor 2 | . . . . . . . . . . . . . . . 3 2 5 7 11 11 11 8 5 3 . 5 7 4 1 4 Treads 7 | . 19 22 . 3 14 12 15 15 13 . . . . . . . . . 4 10 11 9 6 8 4 . . . 2 15 Leg 6 | . 8 . . . 3 1 . . 1 15 . . . . 1 24 23 20 13 . 1 . 9 11 15 21 16 . . . Hover 5 | . . . . . . . . . . . 25 26 26 26 22 . . . . . . . . . . . 2 19 12 . Device 5 | . . . . . 2 5 7 3 . 4 3 6 5 5 6 6 8 2 . 4 . 1 7 9 14 2 7 4 6 11 Storage 23 | . 28 28 28 28 25 23 29 33 34 28 20 20 20 20 21 26 22 23 23 23 23 20 20 21 21 21 18 19 18 19 Processor 7 | . . . . . 8 15 15 15 15 12 6 6 6 6 6 6 5 5 1 . . 2 5 5 5 10 9 9 13 9 Hackware 5 | . . . . . . 6 . . . 2 9 6 6 6 2 . 1 5 5 5 11 17 11 10 10 14 11 12 9 14 Protection 2 | . . . . . 6 1 . . . 2 1 6 6 6 4 . . 5 10 11 10 6 . . . 2 3 3 1 . Energy Gun 2 | . . . . . 8 6 5 6 . 4 7 . . . 3 . . . . . . . . . . . 1 . . . Energy Cannon 4 | . 6 17 . . 4 . . . . . 1 . . 3 4 17 16 9 5 5 5 4 12 10 10 4 . . . . Ballistic Gun 8 | . 9 4 28 27 11 14 11 15 12 14 6 6 6 4 . . . 5 10 11 10 8 . 3 4 9 8 11 4 . Launcher 1 | . . . . . . . . . 1 2 1 5 6 7 5 1 . . . . . . . 1 . . . . . . Naked Turns . | . . . . . . . . . . . . . . . . . . . . . . . . . . . . . . . Heaviest Build 140 | 15 45 45 43 43 71 89 104 120 116 124 99 82 83 86 106 105 140 135 122 123 122 122 136 134 134 114 129 100 122 111 Greatest Support 155 | 40 40 40 20 20 43 48 48 56 56 56 88 88 88 88 110 100 95 90 80 108 150 155 102 80 120 120 120 120 132 120 Greatest Overweight (x) 21 | . 1 3 2 4 5 4 2 2 3 2 1 . . . 21 1 2 4 1 1 1 1 4 2 1 . 3 . 2 1 Average Overweight (x) . | . . 1 2 2 1 1 1 1 1 1 . . . . . . 1 1 1 1 . . 1 1 1 . . . . . Largest Inventory Capacity 36 | 8 16 16 16 16 22 22 30 36 36 30 30 22 22 22 22 22 22 22 22 22 22 22 22 22 22 22 22 20 22 22 Average Capacity 22 | 6 9 16 16 16 21 22 29 32 33 28 22 22 22 22 21 22 21 22 22 22 22 21 22 22 22 22 20 20 21 22 Most Carried 36 | 6 11 16 16 16 22 22 30 36 36 30 30 22 22 22 22 22 22 22 22 22 22 22 21 22 22 22 22 17 22 22 Average Carried 21 | 2 7 15 16 15 20 21 28 32 32 27 21 21 22 21 20 21 21 21 21 21 21 21 18 21 21 21 18 16 19 21 Final Capacity 36 | 8 16 16 16 16 22 22 30 36 30 30 22 22 22 22 22 22 22 22 22 22 22 22 22 22 22 22 20 20 22 22 Final Carried 36 | 4 11 16 16 15 22 22 30 36 30 30 22 22 22 22 22 22 22 22 21 22 22 18 21 22 22 22 17 16 22 21 Class Distribution -------------------- 33% | Scavenger-Mutant 11% | Hauler-Mutant 10% | Mutant 9% | Hauler-Skirmisher 7% | Scavenger-Skirmisher 7% | Hauler-Golem 7% | Scavenger-Tank 4% | Hacker-Mutant 3% | Hauler-Tank Dominant Class ---------------- Mutant | -10/Materials Mutant | -10/Mines Mutant | -10/Exiles Mutant | -9/Mines Scavenger-Tank | -8/Materials Scavenger-Skirmisher | -7/Factory Hauler-Skirmisher | -7/Lower Caves Hauler-Mutant | -7/Lower Caves Hauler-Mutant | -7/Data Miner Hauler-Mutant | -6/Proximity Caves Scavenger-Mutant | -6/Factory Scavenger-Mutant | -6/Lower Caves Scavenger-Mutant | -6/Lower Caves Scavenger-Mutant | -6/Zion Scavenger-Mutant | -6/Deep Caves Hauler-Golem | -5/Proximity Caves Hauler-Golem | -5/Factory Hauler-Golem | -5/Extension Scavenger-Mutant | -5/Cetus Scavenger-Mutant | -5/Archives Scavenger-Mutant | -5/Hub_04(d) Scavenger-Mutant | -4/Factory Hacker-Golem | -4/Upper Caves Scavenger-Mutant | -4/Upper Caves Scavenger-Mutant | -4/Warlord Hacker-Mutant | -3/Proximity Caves Scavenger-Mutant | -3/Research Hacker-Mutant | -3/Garrison Scavenger-Mutant | -3/Quarantine Scavenger-Mutant | -3/Section 7 Resources | -11 -10 -10 -10 -9 -8 -7 -7 -7 -7 -6 -6 -6 -6 -6 -6 -5 -5 -5 -5 -5 -5 -4 -4 -4 -4 -3 -3 -3 -3 -3 ----------- Run | Scr Mat Min Exi Min Mat Fac Low Low Dat Pro Fac Low Low Zio Dee Pro Fac Ext Cet Arc Hub Fac Upp Upp War Pro Res Gar Qua Sec Matter Collected 13445 | 244 232 141 . 186 1010 972 204 376 145 3073 797 310 165 36 814 286 114 265 218 144 222 571 498 213 148 339 477 127 833 285 Remotely . | . . . . . . . . . . . . . . . . . . . . . . . . . . . . . . . Salvage Created 21049 | 54 469 392 . 179 2176 1780 86 538 228 1464 983 241 111 . 1246 821 1680 1037 330 329 866 1292 689 517 . 713 1636 210 673 309 Parts 965 | 2 32 18 . 13 113 96 3 13 8 49 52 15 8 . 39 36 98 53 12 15 43 58 24 10 . 17 74 7 41 16 Haulers Intercepted 8 | . . . . . 4 1 . 1 . . . . . . . . 1 . . . . 1 . . . . . . . . Recyclers Shooed 20 | . . 3 . . 2 4 . . . . 1 . . . . . . . . . . 7 . . . . 3 . . . Parts Field Recycled . | . . . . . . . . . . . . . . . . . . . . . . . . . . . . . . . Retrieved Matter . | . . . . . . . . . . . . . . . . . . . . . . . . . . . . . . . Parts Self-Destructed 166 | . . . . . . . . . . 34 . 13 3 . . 26 . . . . . . 18 1 71 . . . . . Prevented 74 | . . . . . . . . 11 . 23 . . . . . 5 . . . . . . 3 9 10 13 . . . . Kills | -11 -10 -10 -10 -9 -8 -7 -7 -7 -7 -6 -6 -6 -6 -6 -6 -5 -5 -5 -5 -5 -5 -4 -4 -4 -4 -3 -3 -3 -3 -3 ------- Run | Scr Mat Min Exi Min Mat Fac Low Low Dat Pro Fac Low Low Zio Dee Pro Fac Ext Cet Arc Hub Fac Upp Upp War Pro Res Gar Qua Sec Combat Hostiles Destroyed 401 | . 11 14 . 12 45 31 1 8 3 22 26 9 4 . 50 23 22 13 4 2 10 22 13 6 . 11 18 4 11 6 Melee 23 | . 5 3 . . 4 . . . . . . 1 1 . 1 . . . . . . . . . . . 2 . 6 . Guns 98 | . 2 3 . 9 20 19 1 . . 6 6 2 1 . 1 . . 3 . 2 5 7 . . . 2 6 . 1 2 Cannons 83 | . 4 4 . . 6 . . . . . 2 . . . 4 8 22 7 . . 4 8 7 . . . 1 . 3 3 AOE 148 | . . 1 . 3 10 12 . 5 . 12 16 6 2 . 42 13 . . . . . 6 6 2 . 4 4 3 . 1 Classes Destroyed 27 | 1 5 3 . . 4 2 2 . . 2 2 . . . 4 . . . . . . . . 1 . . . 1 . . Worker 11 | . 1 1 . . . 4 . . . . . . . . . . 1 . . . . 4 . . . . . . . . Builder 17 | . . 1 . . 1 5 . . . . 2 . . . . . 2 . . . 2 1 . . . . 3 . . . Tunneler 3 | . . 1 . . . 1 . . . . . . . . . . . . . . . 1 . . . . . . . . Hauler 8 | . . . . . 4 1 . 1 . . . . . . . . 1 . . . . 1 . . . . . . . . Recycler 7 | 1 . . . . . 2 . . . . . . . . . . 1 . . . 1 . . . . . 2 . . . Minesweeper 3 | . . . . . . . 1 . . 1 . 1 . . . . . . . . . . . . . . . . . . Operator 13 | . 1 . . . 2 1 . . . . 1 . . . . . 1 . . 4 1 1 . . . . . . 1 . Drone 1 | . . . . . . . . . . . . . . . 1 . . . . . . . . . . . . . . . Watcher 15 | . 1 . . . 2 1 . . . . 1 . . . . . 2 1 1 . 1 3 . . . . 1 . 1 . Swarmer 80 | . 3 4 . 9 10 6 . . . 9 4 7 3 . . 11 . 1 . . . . 6 1 . . . 3 2 1 Saboteur 1 | . . . . . . . . . . . 1 . . . . . . . . . . . . . . . . . . . Grunt 132 | . 8 5 . 3 22 15 . 8 . 6 13 1 . . . 8 7 3 . . 4 7 4 4 . 3 7 . 1 3 Brawler 10 | . . . . . 1 . . . . 1 1 . . . . . 1 2 . . . 2 1 . . 1 . . . . Duelist 4 | . . . . . . 1 . . . 1 . . . . . 1 . . . . . 1 . . . . . . . . Protector 2 | . . . . . . . . . . 1 . . . . . . . 1 . . . . . . . . . . . . Sentry 30 | . . . . . 10 2 . . . 1 . 1 1 . . 1 2 2 . 2 3 . 1 1 . 1 2 . . . Demolisher 2 | . . . . . . . . . . 2 . . . . . . . . . . . . . . . . . . . . Specialist 1 | . . . . . . . . . . . . . . . . . . . . . . . . . . . . 1 . . Hunter 27 | . . . . . 2 3 . . . . 2 . . . . 1 2 1 . . 2 5 . . . 4 5 . . . Programmer 36 | . . . . . . 4 . . . 1 4 . . . . . 10 1 . . . 7 . . . 2 4 . 1 2 Behemoth 6 | . . . . . . . . . . . 1 . . . . 1 . 2 . . 1 . 1 . . . . . . . Cetus Guard 4 | . . . . . . . . . . . . . . . . . . . 4 . . . . . . . . . . . Quarantine Guard 7 | . . . . . . . . . . . . . . . . . . . . . . . . . . . . . 7 . Enhanced Grunt 3 | . . . . . . . . . 3 . . . . . . . . . . . . . . . . . . . . . Z-Light 7 | . . . . . . . . . . . . . . . 7 . . . . . . . . . . . . . . . Samaritan 1 | . . . . . . . . . . . . . . . . . . . . . . . . 1 . . . . . . Assembler 1 | . . . . . . . . . . . . . . . 1 . . . . . . . . . . . . . . . Assembled 51 | . . 5 . . . . . . . . . . . . 39 . . . . . . . . . . . . . 7 . Golem 3 | . . . . . . . . . . . . . . . 3 . . . . . . . . . . . . . . . Thug 1 | . . . . . . . . . . . . . . . . . . 1 . . . . . . . . . . . . Mutant 1 | . . . . . . . 1 . . . . . . . . . . . . . . . . . . . . . . . Best Kill Streak 31 | 1 3 2 . 4 5 12 1 6 3 4 8 4 2 . 31 8 6 4 5 4 3 12 5 3 . 6 10 3 3 3 Combat Bots Only 31 | . 3 2 . 4 5 7 1 5 3 4 8 4 2 . 31 8 5 4 4 1 2 6 5 3 . 6 8 3 2 3 Max Kills in Single Turn 12 | 1 1 1 . 2 2 4 1 2 1 2 3 2 2 . 12 4 3 2 2 1 4 4 3 1 . 1 3 1 1 1 Gunslinging . | . . . . . . . . . . . . . . . . . . . . . . . . . . . . . . . Exploded 12 | . . 1 . 2 2 3 . 2 . 2 3 2 2 . 12 4 . . . . . 2 3 1 . 1 2 1 . 1 Melee 1 | . 1 1 . . 1 . . . . . . 1 1 . 1 . . . . . . . . . . . 1 . 1 . Uniques/NPCs Destroyed 1 | . . . . . . . . . . . . . . . 1 . . . . . . . . . . . . . . . Z-Imprinter (-6/Deep Caves) Combat | -11 -10 -10 -10 -9 -8 -7 -7 -7 -7 -6 -6 -6 -6 -6 -6 -5 -5 -5 -5 -5 -5 -4 -4 -4 -4 -3 -3 -3 -3 -3 -------- Run | Scr Mat Min Exi Min Mat Fac Low Low Dat Pro Fac Low Low Zio Dee Pro Fac Ext Cet Arc Hub Fac Upp Upp War Pro Res Gar Qua Sec Damage Taken 33645 | . 498 548 . 285 2170 1931 44 92 94 961 1801 165 195 79 2300 938 674 2608 202 50 660 4319 1772 119 . 1602 2316 443 5628 1151 Core 4256 | . 65 111 . 68 172 292 . 18 . 89 215 20 . . 254 118 120 487 . . 94 425 167 21 . 282 194 65 872 107 Absorbed by Shields 1399 | . . . . . . . . . . . . . . . . . 122 39 . . . . . 124 . . 754 . 360 . Core Remaining (%) 41 | 100 . . . 2 68 . . . . 43 . . . . . 28 . . . . 29 . . . . 22 . . . . Volleys Fired 1036 | 4 22 47 . 22 117 84 9 9 4 65 70 14 17 13 74 27 58 58 10 20 20 91 28 14 . 40 41 11 33 14 Largest 3 | 2 2 2 . 2 3 3 3 1 1 3 3 1 1 1 3 3 3 3 2 3 3 3 3 2 . 2 3 1 3 3 Hottest 198 | 70 112 112 . 50 157 117 117 36 36 117 185 80 80 90 80 96 75 85 70 95 95 180 80 50 . 80 188 46 100 198 Shots Fired 1776 | 8 31 63 . 41 248 197 20 9 4 101 95 15 18 12 82 45 140 85 13 32 51 171 64 16 . 51 72 11 52 29 Gun 915 | 8 22 24 . 38 180 181 16 . . 71 65 11 17 . 18 . . 20 6 14 33 100 . . . 11 53 . 20 7 Cannon 684 | . 9 37 . . 60 6 4 . . 5 14 . . 12 45 35 140 58 4 18 18 66 58 3 . 30 11 . 31 20 Launcher 169 | . . 2 . 3 8 10 . 9 4 25 16 4 1 . 19 10 . . 3 . . 5 5 13 . 10 8 11 1 2 Special 8 | . . . . . . . . . . . . . . . . . . 7 . . . . 1 . . . . . . . Kinetic 722 | 4 16 24 . 38 110 132 11 . . 50 25 11 17 . 6 . . 20 6 14 33 90 . . . 11 38 . 46 20 Thermal 684 | 4 6 . . . 56 55 9 . . 25 24 . . 12 42 35 140 65 4 18 18 76 59 3 . 11 15 . . 7 Explosive 78 | . . 2 . 3 5 3 . . . 13 13 4 1 . 12 7 . . . . . 5 2 . . 5 2 . 1 . Electromagnetic 285 | . 9 37 . . 77 7 . 9 4 13 33 . . . 22 3 . . 3 . . . 3 13 . 24 15 11 . 2 Entropic 7 | . . . . . . . . . . . . . . . . . . . . . . . . . . . 2 . 5 . Robot Hit Streak 18 | 2 9 15 . 4 16 18 6 4 2 9 15 6 7 . 18 14 10 15 5 15 14 16 13 9 . 13 11 2 15 7 Robot Miss Streak 5 | 2 2 5 . 4 3 5 5 3 1 5 3 . 2 . 2 1 3 4 1 3 2 4 1 3 . 5 3 3 3 3 Penetration Max 1 | . . . . . 1 1 . . . . . . . . . . . 1 1 . 1 1 . . . . 1 . . . Secondary Targets 6 | . . . . 2 . 3 . . . . . . . . . . . . . . . 1 . . . . . . . . Max Gunslinging Chain 1 | . . . . 1 . 1 . . . . . . . . . . . . . . . 1 . . . . . . . . Shots Hit Robots 1224 | 4 49 50 . 26 186 138 12 5 2 59 50 9 14 . 46 33 73 55 5 23 37 118 45 5 . 33 49 2 78 18 Core Hits 843 | 2 16 19 . 17 84 84 8 9 3 56 53 13 6 . 119 30 34 20 6 9 25 79 21 8 . 21 46 7 34 14 Critical Hits 69 | . 1 . . . 2 2 . . . . 3 3 2 . 2 . . 5 3 5 5 6 . . . 4 5 . 20 1 Critical Kills 31 | . 1 . . . 2 1 . . . . 1 2 1 . 2 . . 1 . 3 4 2 . . . . 3 . 8 . Critical Parts Destroyed 32 | . . . . . . 1 . . . . 2 1 1 . . . . 3 3 2 1 4 . . . 4 2 . 7 1 Melee Attacks 198 | . 29 8 . . 16 . 1 . 21 3 . 7 8 2 8 . . 5 . . 1 1 1 . . . 7 . 77 3 Impact 10 | . 7 . . . 3 . . . . . . . . . . . . . . . . . . . . . . . . . Slashing 43 | . 22 8 . . 13 . . . . . . . . . . . . . . . . . . . . . . . . . Piercing 145 | . . . . . . . 1 . 21 3 . 7 8 2 8 . . 5 . . 1 1 1 . . . 7 . 77 3 Sneak Attacks 20 | . 5 1 . . 1 . . . 1 . . 1 . . . . . 1 . . . . . . . . . . 10 . Combat Hostiles 1 | . . . . . . . . . . . . . . . . . . . . . . . . . . . . . 1 . Follow-up Attacks 3 | . 3 . . . . . . . . . . . . . . . . . . . . . . . . . . . . . Damage Inflicted 64424 | 62 1203 1250 . 591 4577 4182 225 985 185 3111 4362 847 365 79 6600 3372 3928 2639 774 871 1873 6563 2663 829 . 2080 3322 421 5368 1097 Guns 11948 | 62 196 158 . 301 1913 2265 225 . . 746 791 40 46 . 131 . . 474 190 289 653 1879 . . . 214 977 . 280 118 Cannons 18544 | . 193 655 . . 1073 52 . . . . 109 . . . 1082 1380 3928 1876 43 582 754 2339 1877 59 . 568 253 . 1142 579 Explosions 27559 | . . 154 . 290 1301 1860 . 985 95 2365 3462 630 227 . 5248 1992 . . 541 . 461 2308 786 770 . 1298 1833 421 182 350 Melee 6000 | . 809 180 . . 254 . . . 90 . . 177 92 . 139 . . 186 . . . . . . . . 259 . 3764 50 Ramming 270 | . 5 103 . . 36 5 . . . . . . . 79 . . . . . . 5 37 . . . . . . . . Kinetic 10018 | 13 133 158 . 301 1081 1429 145 . . 479 437 40 46 . 34 . . 474 190 289 653 1682 . . . 214 652 . 989 579 Thermal 18791 | 49 63 56 . 86 1040 1171 80 116 . 353 298 . . . 1131 1380 3928 1979 43 582 754 2925 1877 59 . 282 336 85 . 118 Explosive 16704 | . . 98 . 204 534 737 . . . 1280 3074 630 227 . 4251 1540 . . . . . 1919 523 . . 833 672 . 182 . Electromagnetic 12208 | . 193 655 . . 1632 840 . 869 95 999 553 . . . 1045 452 . . 541 . 461 . 263 770 . 751 1403 336 . 350 Impact 261 | . 159 . . . 102 . . . . . . . . . . . . . . . . . . . . . . . . . Slashing 982 | . 650 180 . . 152 . . . . . . . . . . . . . . . . . . . . . . . . . Piercing 4757 | . . . . . . . . . 90 . . 177 92 . 139 . . 186 . . . . . . . . 259 . 3764 50 Entropic 433 | . . . . . . . . . . . . . . . . . . . . . . . . . . . . . 433 . Highest Corruption 30 | . . . . . 1 6 6 . . 2 6 6 6 6 . . . 5 5 5 2 20 29 29 30 1 12 12 27 4 Average Corruption 7 | . . . . . 1 3 5 . . 1 4 6 6 6 . . . 3 5 2 2 5 23 29 29 1 5 12 17 2 Corruption Purged 11 | . . . . . . . 6 . . . . . . . . . . . . 5 . . . . . . . . . . Effects 491 | . . . . . 4 31 52 . . 24 32 12 16 . . . . 13 9 18 . 20 103 37 4 2 30 10 72 2 Message Errors 90 | . . . . . 1 10 11 . . 12 7 2 3 . . . . 4 . 5 . 4 13 1 1 1 6 2 7 . Matter Fused 98 | . . . . . . 7 10 . . . 9 3 3 . . . . 5 4 3 . 4 24 5 1 . 7 1 12 . Heat Flow Errors 44 | . . . . . . 6 7 . . 2 2 2 2 . . . . . 1 1 . . 8 6 . . 6 . 1 . Energy Discharges 60 | . . . . . . 2 13 . . 6 2 1 2 . . . . 2 1 6 . 3 8 5 . . 1 . 8 . Parts Rejected 4 | . . . . . . . . . . . 1 . . . . . . . . . . . 1 . . . . . 2 . Data Loss (minor) 55 | . . . . . 2 4 8 . . 3 3 . 1 . . . . 1 1 2 . . 8 4 1 1 4 1 9 2 Data Loss (major) 8 | . . . . . . . . . . . 1 1 . . . . . . 1 . . . 1 1 . . . . 3 . Misfires 18 | . . . . . . . 3 . . . . 2 1 . . . . . . . . . 5 1 . . 2 . 4 . Alerts 1 | . . . . . . . . . . . . . . . . . . . . . . . . . . . . . 1 . Misdirections 40 | . . . . . . . . . . . . . . . . . . . . . . . 11 8 1 . 2 4 14 . Targeting Errors 67 | . . . . . 1 2 . . . 1 7 . 4 . . . . 1 1 . . 9 22 6 . . 1 2 10 . Weapon Failures 6 | . . . . . . . . . . . . 1 . . . . . . . 1 . . 2 . . . 1 . 1 . Overload Shots 33 | . . . . . . 4 3 . . 4 9 . . 13 . . . . . . . . . . . . . . . . Effects 2 | . . . . . . . . . . 1 . . . 1 . . . . . . . . . . . . . . . . Energy Bleed 1 | . . . . . . . . . . 1 . . . . . . . . . . . . . . . . . . . . Meltdown 1 | . . . . . . . . . . . . . . 1 . . . . . . . . . . . . . . . . Overflow Damage 2763 | . 86 3 . 47 155 26 . 57 30 79 197 48 48 . 257 160 327 234 59 61 53 163 64 43 . 116 68 . 357 25 Projectiles 956 | . 6 3 . . 30 . . . . . . . . . 128 89 327 123 . 61 38 99 35 . . 8 . . . 9 Explosions 1071 | . . . . 47 22 26 . 57 . 79 197 2 48 . 120 71 . . 59 . 15 64 29 43 . 108 68 . . 16 Melee 736 | . 80 . . . 103 . . . 30 . . 46 . . 9 . . 111 . . . . . . . . . . 357 . Knockbacks 7 | . 1 . . . 3 . . . . . . . . . . . . . . . . . . . . . . . . 3 Impact 2 | . 1 . . . 1 . . . . . . . . . . . . . . . . . . . . . . . . . Kinetic 5 | . . . . . 2 . . . . . . . . . . . . . . . . . . . . . . . . 3 Secondary . | . . . . . . . . . . . . . . . . . . . . . . . . . . . . . . . Self-Inflicted Damage 1795 | . . 33 . 49 145 87 . . . 140 198 . . 79 66 140 . . . . 99 68 99 95 . 110 316 . 27 44 Shots 57 | . . 1 . 1 7 4 . . . 8 5 . . . 3 4 . . . . 1 2 4 4 . 4 6 . 1 2 Rammed 37 | . 2 21 . . 7 2 . . . . . . . . . . . . . . 1 4 . . . . . . . . Targets Rammed 39 | . 2 22 . . 8 2 . . . . . . . . . . . . . . 1 4 . . . . . . . . Kicked . | . . . . . . . . . . . . . . . . . . . . . . . . . . . . . . . Crushed 2 | . . 1 . . 1 . . . . . . . . . . . . . . . . . . . . . . . . . Highest Temperature 379 | 36 126 186 . 41 321 324 265 9 . 257 294 272 206 208 208 79 . 96 102 166 213 308 242 216 . 96 379 141 316 4 Average Temperature 82 | 19 57 66 . 15 97 100 100 4 . 72 66 80 70 83 63 30 . 29 36 46 81 107 100 100 . 36 112 47 86 4 Received Heat Transfer 4717 | . 246 129 . 63 846 429 . 45 12 171 324 54 30 . 425 159 87 448 18 . 81 177 144 8 . 108 257 30 226 200 Effects 10 | . . . . . 1 3 . . . . . . . . . . . . . . . 3 . . . . . . 3 . Energy Bleed 6 | . . . . . 1 2 . . . . . . . . . . . . . . . 2 . . . . . . 1 . Interference 3 | . . . . . . 1 . . . . . . . . . . . . . . . . . . . . . . 2 . Short Circuit 1 | . . . . . . . . . . . . . . . . . . . . . . 1 . . . . . . . . Siege Activations . | . . . . . . . . . . . . . . . . . . . . . . . . . . . . . . . Robots Corrupted 52 | . . 3 . . 8 . . 4 3 8 2 . . . 2 2 . . 5 . . . . 4 . 5 5 1 . . Combat Hostiles 42 | . . 3 . . 5 . . 3 3 3 2 . . . 2 2 . . 4 . . . . 4 . 5 5 1 . . Parts Fried 108 | . 5 6 . . 16 3 . 7 . 9 4 . . . 14 2 . . 6 . 3 . 3 6 . 4 15 5 . . Impact Corruptions 8 | . 2 . . . 6 . . . . . . . . . . . . . . . . . . . . . . . . . Robots Melted 3 | . . . . . . . . . . 1 . . . . . . . 1 . . . 1 . . . . . . . . Combat Hostiles 3 | . . . . . . . . . . 1 . . . . . . . 1 . . . 1 . . . . . . . . Parts Melted 16 | 2 . . . . 1 . 1 . . 3 1 . . . . 1 . 1 . . 1 2 2 . . . . . . 1 Heat Transferred 15129 | 148 185 50 . 100 1943 1928 148 50 . 614 457 . . . 689 775 1975 1110 25 350 400 2327 1025 25 . 150 457 50 . 148 Parts Sabotaged . | . . . . . . . . . . . . . . . . . . . . . . . . . . . . . . . Parts Stolen . | . . . . . . . . . . . . . . . . . . . . . . . . . . . . . . . Parts Stripped . | . . . . . . . . . . . . . . . . . . . . . . . . . . . . . . . Power Chain Reactions 17 | . . 1 . . 4 6 . 1 . 1 . . . . 2 . . . . . . . . . . . 1 1 . . Missiles Intercepted . | . . . . . . . . . . . . . . . . . . . . . . . . . . . . . . . Alert | -11 -10 -10 -10 -9 -8 -7 -7 -7 -7 -6 -6 -6 -6 -6 -6 -5 -5 -5 -5 -5 -5 -4 -4 -4 -4 -3 -3 -3 -3 -3 ------- Run | Scr Mat Min Exi Min Mat Fac Low Low Dat Pro Fac Low Low Zio Dee Pro Fac Ext Cet Arc Hub Fac Upp Upp War Pro Res Gar Qua Sec Peak Influence 1231 | 5 157 241 . 215 465 784 . . . . 1231 . . . . . 680 534 456 437 1023 1117 . . . . 770 723 788 282 Initial 577 | . 3 45 . . 33 158 . . . . 9 . . . . . 170 228 77 182 . 501 . . . . 27 577 400 33 Average 292 | 2 82 54 . 79 287 347 . . . . 510 . . . . . 360 173 324 229 316 716 . . . . 338 677 148 136 Maximum Alert Level 4 | . . 1 . 1 2 3 . . . . 4 . . . . . 2 2 2 2 3 4 . . . . 3 3 3 1 Low Security (%) 43 | 100 100 90 . 89 19 39 . . . . 31 . . . . . 6 69 34 38 40 . . . . . 16 . 75 61 Level 1 24 | . . 9 . 10 71 4 . . . . 6 . . . . . 53 27 12 35 9 . . . . . 46 . 8 38 Level 2 25 | . . . . . 9 47 . . . . 29 . . . . . 39 3 52 26 48 65 . . . . 32 67 14 . Level 3 5 | . . . . . . 8 . . . . 17 . . . . . . . . . . 32 . . . . 4 32 . . Level 4 1 | . . . . . . . . . . . 14 . . . . . . . . . . 2 . . . . . . . . Level 5 . | . . . . . . . . . . . . . . . . . . . . . . . . . . . . . . . High Security . | . . . . . . . . . . . . . . . . . . . . . . . . . . . . . . . Max Security . | . . . . . . . . . . . . . . . . . . . . . . . . . . . . . . . Squads Dispatched 65 | . 4 . . . 7 14 . . . . 7 . . . . . 5 2 . . 7 9 . . . . 5 . 3 2 Investigation 11 | . 3 . . . 2 1 . . . . 2 . . . . . 1 . . . . . . . . . . . 2 . Extermination 16 | . . . . . . 3 . . . . 2 . . . . . 3 . . . 1 3 . . . . 2 . 1 1 Reinforcement 24 | . 1 . . . 5 5 . . . . 1 . . . . . 1 1 . . 3 4 . . . . 2 . . 1 Assault 6 | . . . . . . 1 . . . . 2 . . . . . . 1 . . . 1 . . . . 1 . . . Garrison 8 | . . . . . . 4 . . . . . . . . . . . . . . 3 1 . . . . . . . . Intercept . | . . . . . . . . . . . . . . . . . . . . . . . . . . . . . . . Construction Impeded 7 | . . . . . 1 2 . . . . . . . . . . . . . . 1 2 . . . . 1 . . . Haulers Reinforced 2 | . . . . . . 1 . . . . . . . . . . . . . . . 1 . . . . . . . . Stealth | -11 -10 -10 -10 -9 -8 -7 -7 -7 -7 -6 -6 -6 -6 -6 -6 -5 -5 -5 -5 -5 -5 -4 -4 -4 -4 -3 -3 -3 -3 -3 --------- Run | Scr Mat Min Exi Min Mat Fac Low Low Dat Pro Fac Low Low Zio Dee Pro Fac Ext Cet Arc Hub Fac Upp Upp War Pro Res Gar Qua Sec Distress Signals 51 | . 1 1 . . 4 1 . . . 30 1 . . . . . . 2 1 . 2 5 . . . . 1 . 2 . Communications Jammed . | . . . . . . . . . . . . . . . . . . . . . . . . . . . . . . . Distress Signals . | . . . . . . . . . . . . . . . . . . . . . . . . . . . . . . . Times Spotted 667 | . 23 27 . 13 68 43 1 8 2 37 41 6 3 . 70 23 27 27 9 11 30 38 14 6 1 13 45 9 58 14 Peak Tracking Total 37 | . 4 3 . 4 5 7 1 5 2 7 10 4 3 . 37 5 4 10 5 1 6 6 5 3 . 4 14 9 19 8 Tactical Retreats 47 | . 4 4 . 1 5 . . . . 2 3 . . . 9 1 1 . 1 . . . . . . 1 3 . 12 . Traps | -11 -10 -10 -10 -9 -8 -7 -7 -7 -7 -6 -6 -6 -6 -6 -6 -5 -5 -5 -5 -5 -5 -4 -4 -4 -4 -3 -3 -3 -3 -3 ------- Run | Scr Mat Min Exi Min Mat Fac Low Low Dat Pro Fac Low Low Zio Dee Pro Fac Ext Cet Arc Hub Fac Upp Upp War Pro Res Gar Qua Sec Traps Triggered 35 | . . 1 . . 1 6 . . 1 2 1 . . . . . 1 3 . . 4 4 . . . . 3 6 2 . Indirectly 10 | . . . . . . 2 . . 1 2 . . . . . . . . . . 2 . . . . . . 3 . . Trap Hack Attempts . | . . . . . . . . . . . . . . . . . . . . . . . . . . . . . . . Triggered . | . . . . . . . . . . . . . . . . . . . . . . . . . . . . . . . Disarmed . | . . . . . . . . . . . . . . . . . . . . . . . . . . . . . . . Reprogrammed 3 | . . . . . 3 . . . . . . . . . . . . . . . . . . . . . . . . . Reused 5 | . . . . . . . . . 1 4 . . . . . . . . . . . . . . . . . . . . Traps Extracted . | . . . . . . . . . . . . . . . . . . . . . . . . . . . . . . . Installed 14 | . . . . . . . . . 4 10 . . . . . . . . . . . . . . . . . . . . Triggered 15 | . . . . . . . . . . 4 . . . . . . . . . . . . . . 11 . . . . . Machines | -11 -10 -10 -10 -9 -8 -7 -7 -7 -7 -6 -6 -6 -6 -6 -6 -5 -5 -5 -5 -5 -5 -4 -4 -4 -4 -3 -3 -3 -3 -3 ---------- Run | Scr Mat Min Exi Min Mat Fac Low Low Dat Pro Fac Low Low Zio Dee Pro Fac Ext Cet Arc Hub Fac Upp Upp War Pro Res Gar Qua Sec Machines Disabled 98 | . . 1 . 1 1 6 2 . . 3 8 . 1 3 4 . 10 9 2 3 14 9 1 . . . 3 3 13 1 Max in Single Turn 12 | . . 1 . 1 1 3 1 . . 1 4 . 1 1 1 . 4 2 1 1 12 4 1 . . . 2 2 1 1 Garrison Access 5 | . . . . . 1 . . . . . 1 . . . . . 1 . . . 2 . . . . . . . . . Network Hub 1 | . . . . . . . . . . . . . . . . . . . . . 1 . . . . . . . . . Machines Sabotaged . | . . . . . . . . . . . . . . . . . . . . . . . . . . . . . . . Garrisons Compromised . | . . . . . . . . . . . . . . . . . . . . . . . . . . . . . . . Overloaded Fab Kills . | . . . . . . . . . . . . . . . . . . . . . . . . . . . . . . . Fab Network Shutdowns 2 | . . . . . . . . . . . 1 . . . . . . . . . . . . . . . 1 . . . Hacking | -11 -10 -10 -10 -9 -8 -7 -7 -7 -7 -6 -6 -6 -6 -6 -6 -5 -5 -5 -5 -5 -5 -4 -4 -4 -4 -3 -3 -3 -3 -3 --------- Run | Scr Mat Min Exi Min Mat Fac Low Low Dat Pro Fac Low Low Zio Dee Pro Fac Ext Cet Arc Hub Fac Upp Upp War Pro Res Gar Qua Sec Machines Accessed 120 | . 5 1 1 . 14 9 1 1 4 . 11 2 . . . . 12 11 3 . 7 6 1 1 5 1 5 . 16 3 Terminals 71 | . 4 . . . 8 5 . . . . 5 . . . . . 8 11 3 . 5 2 . 1 . 1 2 . 14 2 Fabricators 4 | . . . . . . 1 . . . . 1 . . . . . 1 . . . . . . . . . 1 . . . Repair Stations 11 | . . . . . 1 1 . . . . 3 . . . . . 1 . . . . 3 . . . . . . 1 1 Recycling Units 5 | . 1 . . . 2 1 . . . . . . . . . . . . . . . 1 . . . . . . . . Scanalyzers 6 | . . . . . 2 . . . . . 1 . . . . . 1 . . . . . . . . . 1 . 1 . Garrison Access 7 | . . . . . 1 1 . . . . 1 . . . . . 1 . . . 2 . . . . . 1 . . . Total Hacks 425 | . 11 1 1 . 63 22 1 1 24 . 32 7 . . . . 36 33 12 . 14 25 1 5 9 1 29 . 81 16 Successful 240 | . 5 1 1 . 41 10 1 1 24 . 17 7 . . . . 15 21 5 . 6 15 1 3 9 1 14 . 38 4 Failed 182 | . 6 . . . 21 12 . . . . 15 . . . . . 21 12 6 . 8 10 . 2 . . 15 . 42 12 Catastrophic 45 | . 1 . . . 4 . . . . . 5 . . . . . 8 5 . . 1 . . 1 . . 5 . 11 4 Database Lockouts 3 | . . . . . 1 . . . . . . . . . . . . . 1 . . . . . . . . . 1 . Manual 195 | . 5 . 3 . 25 11 . . . . 11 . . . . . 14 27 13 . 5 11 . 4 2 1 8 . 47 8 Terminals 264 | . 10 . . . 33 15 . . . . 11 . . . . . 25 33 12 . 11 12 . 5 . 1 8 . 78 10 Fabricators 13 | . . . . . . 1 . . . . 3 . . . . . 1 . . . . . . . . . 8 . . . Repair Stations 40 | . . . . . 6 2 . . . . 9 . . . . . 4 . . . . 12 . . . . . . 1 6 Recycling Units 13 | . 1 . . . 9 2 . . . . . . . . . . . . . . . 1 . . . . . . . . Scanalyzers 39 | . . . . . 14 . . . . . 7 . . . . . 5 . . . . . . . . . 11 . 2 . Garrison Access 11 | . . . . . 1 2 . . . . 2 . . . . . 1 . . . 3 . . . . . 2 . . . Terminal Hacks 118 | . 3 1 1 . 11 4 1 1 24 . . 7 . . . . 7 14 2 . 2 4 1 3 9 1 . . 21 1 Record 33 | . . . 1 . . . 1 . 11 . . 6 . . . . . . . . . 1 . 1 7 . . . 5 . Part Schematic 17 | . . . . . . 1 . . 6 . . . . . . . 1 1 1 . . 1 . 1 . . . . 5 . Robot Schematic 4 | . . . . . . . . . 4 . . . . . . . . . . . . . . . . . . . . . Robot Analysis 5 | . 1 . . . 2 . . . . . . . . . . . . . 1 . . . . . . . . . 1 . Prototype ID Bank 3 | . . . . . . . . . 3 . . . . . . . . . . . . . . . . . . . . . Open Door 10 | . . 1 . . . . . 1 . . . 1 . . . . . 3 . . . . 1 . 2 . . . 1 . Level Access Points 2 | . . . . . . . . . . . . . . . . . . . . . 1 . . . . 1 . . . . Branch Access Points 3 | . . . . . . 1 . . . . . . . . . . 1 . . . . 1 . . . . . . . . Machine Index 2 | . . . . . . . . . . . . . . . . . . . . . . 1 . . . . . . 1 . Terminal Index 4 | . . . . . 1 1 . . . . . . . . . . . . . . . . . . . . . . 1 1 Fabricator Index 3 | . . . . . . 1 . . . . . . . . . . 1 . . . . . . . . . . . 1 . Scanalyzer Index 1 | . . . . . . . . . . . . . . . . . 1 . . . . . . . . . . . . . Alert Level 2 | . . . . . 1 . . . . . . . . . . . . . . . . . . . . . . . 1 . Unreport Threat 12 | . . . . . 3 . . . . . . . . . . . 1 5 . . . . . . . . . . 3 . Locate Traps 8 | . 1 . . . 1 . . . . . . . . . . . 1 4 . . . . . . . . . . 1 . Reprogram Traps 1 | . . . . . 1 . . . . . . . . . . . . . . . . . . . . . . . . . Coupling Status 1 | . . . . . . . . . . . . . . . . . . . . . . . . 1 . . . . . . Hauler Manifests 3 | . 1 . . . 1 . . . . . . . . . . . 1 . . . . . . . . . . . . . Zone Layout 4 | . . . . . 1 . . . . . . . . . . . . 1 . . 1 . . . . . . . 1 . Fabricator Hacks 7 | . . . . . . . . . . . 3 . . . . . . . . . . . . . . . 4 . . . Load Schematic 2 | . . . . . . . . . . . 1 . . . . . . . . . . . . . . . 1 . . . Build 5 | . . . . . . . . . . . 2 . . . . . . . . . . . . . . . 3 . . . Repair Station Hacks 29 | . . . . . 6 2 . . . . 7 . . . . . 2 . . . . 9 . . . . . . . 3 Scan Component 15 | . . . . . 3 1 . . . . 4 . . . . . 1 . . . . 5 . . . . . . . 1 Repair 13 | . . . . . 3 1 . . . . 3 . . . . . 1 . . . . 4 . . . . . . . 1 Refit 1 | . . . . . . . . . . . . . . . . . . . . . . . . . . . . . . 1 Recycling Unit Hacks 4 | . . . . . 2 1 . . . . . . . . . . . . . . . 1 . . . . . . . . Retrieve Components 4 | . . . . . 2 1 . . . . . . . . . . . . . . . 1 . . . . . . . . Scanalyzer 29 | . . . . . 12 . . . . . 4 . . . . . 4 . . . . . . . . . 7 . 2 . Insert Component 15 | . . . . . 6 . . . . . 2 . . . . . 2 . . . . . . . . . 3 . 2 . Analyze 14 | . . . . . 6 . . . . . 2 . . . . . 2 . . . . . . . . . 4 . . . Garrison Access Hacks 5 | . . . . . 1 . . . . . . . . . . . 1 . . . 2 . . . . . 1 . . . Unlock Access 1 | . . . . . . . . . . . . . . . . . . . . . . . . . . . 1 . . . Seal Access 4 | . . . . . 1 . . . . . . . . . . . 1 . . . 2 . . . . . . . . . Unauthorized Hacks 48 | . 2 . . . 9 3 . . . . 3 . . . . . 1 7 3 . 2 1 . . . . 2 . 15 . Terminals 41 | . 1 . . . 7 2 . . . . 2 . . . . . 1 7 3 . 2 1 . . . . . . 15 . Track 16 | . . . . . 4 . . . . . . . . . . . . 3 1 . 1 . . . . . . . 7 . Assimilate 2 | . . . . . . . . . . . 1 . . . . . . . . . 1 . . . . . . . . . Botnet 19 | . 1 . . . 3 1 . . . . 1 . . . . . 1 4 1 . . 1 . . . . . . 6 . Disrupt 2 | . . . . . . . . . . . . . . . . . . . . . . . . . . . . . 2 . Operators 2 | . . . . . . 1 . . . . . . . . . . . . 1 . . . . . . . . . . . Fabricators 3 | . . . . . . 1 . . . . . . . . . . . . . . . . . . . . 2 . . . Prioritize 1 | . . . . . . . . . . . . . . . . . . . . . . . . . . . 1 . . . Siphon 1 | . . . . . . . . . . . . . . . . . . . . . . . . . . . 1 . . . Download 1 | . . . . . . 1 . . . . . . . . . . . . . . . . . . . . . . . . Repair Stations . | . . . . . . . . . . . . . . . . . . . . . . . . . . . . . . . Recycling Units 3 | . 1 . . . 2 . . . . . . . . . . . . . . . . . . . . . . . . . Tunnel 3 | . 1 . . . 2 . . . . . . . . . . . . . . . . . . . . . . . . . Scanalyzers . | . . . . . . . . . . . . . . . . . . . . . . . . . . . . . . . Garrison Access 1 | . . . . . . . . . . . 1 . . . . . . . . . . . . . . . . . . . Jam 1 | . . . . . . . . . . . 1 . . . . . . . . . . . . . . . . . . . Data Cores Recovered . | . . . . . . . . . . . . . . . . . . . . . . . . . . . . . . . Used . | . . . . . . . . . . . . . . . . . . . . . . . . . . . . . . . Hacking Detections 85 | . 4 . . . 12 7 . . . . 9 . . . . . 11 10 3 . 6 5 . 1 . . 3 . 11 3 Full Trace Events 3 | . . . . . . . . . . . 1 . . . . . 1 . . . . . . . . . . . 1 . Feedback Events . | . . . . . . . . . . . . . . . . . . . . . . . . . . . . . . . Feedback Blocked . | . . . . . . . . . . . . . . . . . . . . . . . . . . . . . . . Robot Schematics Acquired 4 | . . . . . . . . . 4 . . . . . . . . . . . . . . . . . . . . . Robots Built . | . . . . . . . . . . . . . . . . . . . . . . . . . . . . . . . Matter . | . . . . . . . . . . . . . . . . . . . . . . . . . . . . . . . Time . | . . . . . . . . . . . . . . . . . . . . . . . . . . . . . . . Total Robot Build Rating . | . . . . . . . . . . . . . . . . . . . . . . . . . . . . . . . Part Schematics Acquired 28 | . . . . . 4 2 . . 6 . 1 . . . . . 3 1 1 . . 1 . 1 . . 3 . 5 . Parts Built 8 | . . . . . . . . . . . 2 . . . . . . . . . . . . . . . 6 . . . Matter 1212 | . . . . . . . . . . . 636 . . . . . . . . . . . . . . . 576 . . . Time 360 | . . . . . . . . . . . 168 . . . . . . . . . . . . . . . 192 . . . Total Part Build Rating 60 | . . . . . . . . . . . 12 . . . . . . . . . . . . . . . 48 . . . Parts Repaired 12 | . . . . . 3 1 . . . . 3 . . . . . 1 . . . . 4 . . . . . . . . Time 643 | . . . . . 120 22 . . . . 183 . . . . . 13 . . . . 274 . . . . . . . 31 Parts Recycled . | . . . . . . . . . . . . . . . . . . . . . . . . . . . . . . . Recycled Matter . | . . . . . . . . . . . . . . . . . . . . . . . . . . . . . . . Retrieved Matter . | . . . . . . . . . . . . . . . . . . . . . . . . . . . . . . . Retrieved Components 14 | . . . . . 12 . . . . . . . . . . . . . . . . 2 . . . . . . . . Parts Scanalyzed 10 | . . . . . 4 . . . . . 1 . . . . . 2 . . . . . . . . . 3 . . . Part Schematics Acquired 10 | . . . . . 4 . . . . . 1 . . . . . 2 . . . . . . . . . 3 . . . Parts Damaged 3 | . . . . . . . . . . . 1 . . . . . . . . . . . . . . . 2 . . . Bothacking | -11 -10 -10 -10 -9 -8 -7 -7 -7 -7 -6 -6 -6 -6 -6 -6 -5 -5 -5 -5 -5 -5 -4 -4 -4 -4 -3 -3 -3 -3 -3 ------------ Run | Scr Mat Min Exi Min Mat Fac Low Low Dat Pro Fac Low Low Zio Dee Pro Fac Ext Cet Arc Hub Fac Upp Upp War Pro Res Gar Qua Sec Used RIF Installer . | . . . . . . . . . . . . . . . . . . . . . . . . . . . . . . . Robots Hacked . | . . . . . . . . . . . . . . . . . . . . . . . . . . . . . . . Non-combat . | . . . . . . . . . . . . . . . . . . . . . . . . . . . . . . . Combat . | . . . . . . . . . . . . . . . . . . . . . . . . . . . . . . . Robot Hacks Applied . | . . . . . . . . . . . . . . . . . . . . . . . . . . . . . . . Relay Couplers Released 3 | . . . . . . 3 . . . . . . . . . . . . . . . . . . . . . . . . Programmers 3 | . . . . . . 3 . . . . . . . . . . . . . . . . . . . . . . . . Robots Rewired 10 | . . . . . . 1 . . . 2 . . . . . . . 6 . . . . 1 . . . . . . . Allies Hacked 5 | . . . . . . 2 . . . . . . . . . . . 3 . . . . . . . . . . . . Hacks Repelled . | . . . . . . . . . . . . . . . . . . . . . . . . . . . . . . . Allies | -11 -10 -10 -10 -9 -8 -7 -7 -7 -7 -6 -6 -6 -6 -6 -6 -5 -5 -5 -5 -5 -5 -4 -4 -4 -4 -3 -3 -3 -3 -3 -------- Run | Scr Mat Min Exi Min Mat Fac Low Low Dat Pro Fac Low Low Zio Dee Pro Fac Ext Cet Arc Hub Fac Upp Upp War Pro Res Gar Qua Sec Total Allies 43 | . . 5 . . . 1 . . . 2 1 . . . . . . 18 1 . 1 . 1 . . . . . 7 6 Largest Group 10 | . . 3 . . . 1 . . . 2 2 . . . . . . 10 8 7 7 1 1 1 . . . . 7 6 Highest-Rated Group 340 | . . 40 . . . 32 . . . 62 62 . . . . . . 340 292 263 228 86 48 48 . . . . 101 85 Highest-Rated Ally 156 | . . 31 . . . 32 . . . 32 32 . . . . . . 156 99 99 99 86 48 48 . . . . 15 15 Total Orders 55 | . . . . . . . . . . 9 2 . . . 44 . . . . . . . . . . . . . . . STAY 14 | . . . . . . . . . . 5 . . . . 9 . . . . . . . . . . . . . . . ROAM 1 | . . . . . . . . . . . 1 . . . . . . . . . . . . . . . . . . . FOLLOW 7 | . . . . . . . . . . 4 . . . . 3 . . . . . . . . . . . . . . . EXPLORE 8 | . . . . . . . . . . . . . . . 8 . . . . . . . . . . . . . . . RETURN 25 | . . . . . . . . . . . 1 . . . 24 . . . . . . . . . . . . . . . Ally Attacks 400 | . . 46 . . . 7 . . . 7 8 . . . 73 . . 92 41 13 36 27 . . . . . . . 50 Total Damage 11719 | . . 558 . . . 152 . . . 143 168 . . . 2750 . . 1783 970 580 2291 1314 . . . . . . . 1010 Kills 74 | . . 11 . . . 2 . . . 2 2 . . . 9 . . 10 6 2 18 9 . . . . . . . 3 Allies Corrupted 4 | . . . . . . 1 . . . . . . . . . . . 2 . . . 1 . . . . . . . . Allies Melted . | . . . . . . . . . . . . . . . . . . . . . . . . . . . . . . . Intel | -11 -10 -10 -10 -9 -8 -7 -7 -7 -7 -6 -6 -6 -6 -6 -6 -5 -5 -5 -5 -5 -5 -4 -4 -4 -4 -3 -3 -3 -3 -3 ------- Run | Scr Mat Min Exi Min Mat Fac Low Low Dat Pro Fac Low Low Zio Dee Pro Fac Ext Cet Arc Hub Fac Upp Upp War Pro Res Gar Qua Sec Robot Analysis Total 5 | . 1 . . . 2 . . . . . . . . . . . . . 1 . . . . . . . . . 1 . Derelict Logs Recovered 11 | . . 1 . . . . 1 . . 2 . 2 3 . . . . . . . . . 2 . . . . . . . Drone Launches 32 | . . . . . . . . . . . 2 . . . 30 . . . . . . . . . . . . . . . Drone Recoveries 30 | . . . . . . . . . . . 2 . . . 28 . . . . . . . . . . . . . . . Exploration | -11 -10 -10 -10 -9 -8 -7 -7 -7 -7 -6 -6 -6 -6 -6 -6 -5 -5 -5 -5 -5 -5 -4 -4 -4 -4 -3 -3 -3 -3 -3 ------------- Run | Scr Mat Min Exi Min Mat Fac Low Low Dat Pro Fac Low Low Zio Dee Pro Fac Ext Cet Arc Hub Fac Upp Upp War Pro Res Gar Qua Sec Turns Passed 36779 | 134 1003 1572 306 456 2920 2381 2315 1099 611 2762 1542 572 462 1137 2488 917 1714 1048 272 1278 686 1577 1396 453 1323 491 955 90 2514 305 Spaces Moved 20291 | 69 545 846 307 354 1174 1025 717 526 266 1485 1445 758 582 1308 1715 392 846 468 127 115 355 642 459 227 802 315 586 93 1582 160 Core 7 | 4 . . . . . . . . . . . . . . 3 . . . . . . . . . . . . . . . Treads 6174 | 63 346 557 . . 1104 1025 717 526 221 . . . . . . . . 13 100 115 355 642 12 . . . . . 218 160 Legs 5874 | 2 199 . . . 44 . . . 45 1485 . . . . 112 392 846 455 27 . . . 447 227 802 315 476 . . . Wheels 976 | . . 289 307 354 26 . . . . . . . . . . . . . . . . . . . . . . . . . Hover 7260 | . . . . . . . . . . . 1445 758 582 1308 1600 . . . . . . . . . . . 110 93 1364 . Flight . | . . . . . . . . . . . . . . . . . . . . . . . . . . . . . . . Fastest Speed 34 | 50 120 90 100 100 120 180 180 180 150 120 68 68 68 68 53 140 160 154 154 180 160 160 165 163 150 110 34 34 34 145 Average Speed 131 | 152 147 153 100 104 185 188 196 199 192 150 68 68 68 68 83 155 162 160 174 180 166 161 187 178 161 115 115 56 97 150 Slowest Speed 1100 | 160 180 180 100 120 240 240 200 200 210 180 138 68 68 68 1100 165 182 230 180 180 180 180 240 190 163 125 320 68 220 165 Overloaded Moves . | . . . . . . . . . . . . . . . . . . . . . . . . . . . . . . . Propulsion Burnouts . | . . . . . . . . . . . . . . . . . . . . . . . . . . . . . . . Robots Hopped 2 | . . . . . . . . . . . . . . . . . . . . . 2 . . . . . . . . . Cave-ins Triggered 1 | . . . . . . . . . . . . . . . . . . . . . . . 1 . . . . . . . Teleports 2 | . . . . . . . . . . . . . . . . . . . . . . . . . . . . . 2 . Exploration Rate (%) 62 | 5 80 96 76 74 84 28 80 67 82 89 32 93 82 84 89 63 29 74 70 77 55 20 64 47 88 53 15 35 95 11 Regions Visited 30 Branch Regions 22 Pre-discovered Areas 10 | . 1 . 1 . 2 . . . 1 . . . 1 3 . . . . . . . . 1 . . . . . . . Known Exits Taken 21 | . . . . . . 1 1 1 1 1 1 1 1 1 1 1 1 1 . . 1 1 1 1 1 1 1 . 1 . Unknown Exits Taken 8 | 1 1 1 1 1 1 . . . . . . . . . . . . . 1 1 . . . . . . . . . . Scrap Searched 28 | . . 2 . 2 . . 3 2 . 2 . 8 3 2 . 1 . . . . . . 1 1 . 1 . . . . Spaces Dug 82 | . . . . . 13 4 3 . 9 3 8 1 . 5 6 . 9 3 . . . 3 1 . . . 7 . 6 1 Terrain Destroyed 1260 | . . 25 . 38 77 49 3 5 9 91 144 61 15 9 41 65 82 23 2 7 186 112 49 2 . 16 93 13 35 8 Melee 20 | . . . . . 1 . . . 9 1 . 1 . . . . . . . . . 1 1 . . . . . 5 1 Projectile 221 | . . . . . . 4 3 . . 7 8 . . 9 9 4 39 23 2 7 13 45 16 2 . 6 11 . 6 7 AOE 1019 | . . 25 . 38 76 45 . 5 . 83 136 60 15 . 32 61 43 . . . 173 66 32 . . 10 82 13 24 . Terrain Rammed 1 | . . . . . . . . . . . . . . 1 . . . . . . . . . . . . . . . . Walls Destroyed . | . . . . . . . . . . . . . . . . . . . . . . . . . . . . . . . Machines Disabled 1 | . . . . . . . . . . . . . . 1 . . . . . . . . . . . . . . . . Actions | -11 -10 -10 -10 -9 -8 -7 -7 -7 -7 -6 -6 -6 -6 -6 -6 -5 -5 -5 -5 -5 -5 -4 -4 -4 -4 -3 -3 -3 -3 -3 --------- Run | Scr Mat Min Exi Min Mat Fac Low Low Dat Pro Fac Low Low Zio Dee Pro Fac Ext Cet Arc Hub Fac Upp Upp War Pro Res Gar Qua Sec Total 28510 | 87 664 1029 306 403 1677 1298 1605 565 336 1918 1905 784 615 1540 2686 661 1081 672 167 1158 405 1028 941 257 835 391 804 121 2377 194 Wait 5540 | . 27 73 . 21 231 100 846 2 3 206 292 1 5 194 703 221 142 56 5 1017 17 236 431 7 1 3 99 . 590 11 Move 20257 | 68 544 845 306 353 1173 1024 716 525 265 1484 1444 757 581 1307 1714 391 845 467 126 114 350 641 458 226 801 314 585 92 1581 160 Hop 2 | . . . . . . . . . . . . . . . . . . . . . 2 . . . . . . . . . Pick Up 307 | 4 14 15 . 1 34 16 10 9 7 42 19 1 1 6 48 1 12 7 3 1 1 12 2 . 3 7 11 . 19 1 Fast Attach 249 | 7 3 1 . . 22 5 5 3 5 7 14 . . 3 40 4 7 14 5 3 7 15 3 5 13 5 16 . 36 1 Attach 116 | 2 2 4 . 1 9 9 . 2 4 5 14 . . 3 17 2 . 4 2 . . 10 2 . . 5 10 1 6 2 Detach 77 | 2 2 . . . 3 3 . . 1 1 4 . . . 17 8 5 6 2 . . 1 9 1 1 4 3 . 4 . Swap 240 | . 9 4 . 3 29 39 11 7 4 32 24 3 2 2 2 4 1 3 5 . 2 10 3 4 1 5 16 4 9 2 Drop 344 | . 13 10 . 2 35 12 7 8 18 34 24 1 1 9 59 3 11 12 9 3 4 7 1 . 15 8 16 . 22 . Fire 1036 | 4 22 47 . 22 117 84 9 9 4 65 70 14 17 13 74 27 58 58 10 20 20 91 28 14 . 40 41 11 33 14 Melee 195 | . 26 8 . . 16 . 1 . 21 3 . 7 8 2 8 . . 5 . . 1 1 1 . . . 7 . 77 3 Ram 1 | . . . . . . . . . . . . . . 1 . . . . . . . . . . . . . . . . Kick . | . . . . . . . . . . . . . . . . . . . . . . . . . . . . . . . Crush 39 | . 2 22 . . 8 2 . . . . . . . . . . . . . . 1 4 . . . . . . . . Escape Stasis 20 | . . . . . . 2 . . . . . . . . . . . 5 . . . . . . . . . 13 . . Rewire 69 | . . . . . . 2 . . . 29 . . . . . . . 35 . . . . 3 . . . . . . . Trap 14 | . . . . . . . . . 4 10 . . . . . . . . . . . . . . . . . . . . Miscellaneous 4 | . . . . . . . . . . . . . . . 4 . . . . . . . . . . . . . . . Route ------- -11/Scrapyard -10/Materials (discovered 3 exits: [*Mat x2] / *Min) -10/Mines (discovered 3 exits: [*Mat x2] / *Exi) -10/Exiles (discovered 2 exits: [*Min x2]) -9/Mines (discovered 2 exits: *Mat x2) -8/Materials (discovered 3 exits: *Fac x3) -7/Factory (discovered 2 exits: *Low x2) -7/Lower Caves -7/Lower Caves -7/Data Miner -6/Proximity Caves -6/Factory (discovered 4 exits: *Fac x2 / *Low x2) -6/Lower Caves -6/Lower Caves (discovered 2 exits: *Fac / *Zio) -6/Zion (discovered 2 exits: *Dee / [*Pro]) -6/Deep Caves -5/Proximity Caves -5/Factory (discovered 5 exits: Fac / *Upp x2 / *Ext x2) -5/Extension (discovered 2 exits: *Fac / *Cet) -5/Cetus -5/Archives (discovered 3 exits: *Fac / *Hub x2) -5/Hub_04(d) (discovered 4 exits: *Fac x4) -4/Factory (discovered 2 exits: *Upp x2) -4/Upper Caves -4/Upper Caves -4/Warlord -3/Proximity Caves -3/Research -3/Garrison -3/Quarantine -3/Section 7 History --------- Turn | Location | Event 3 | -11/Scrapyard | Discovered new exit (range 15) 135 | -11/Scrapyard | Entered Materials 325 | -10/Materials | Build established: Mutant 514 | -10/Materials | Discovered new exit (range 14) 621 | -10/Materials | Discovered new exit (range 11) 1098 | -10/Materials | Discovered new exit (range 13) 1138 | -10/Materials | Entered Mines 1187 | -10/Mines | Received a Rocket Launcher from a helpful Derelict 1294 | -10/Mines | Discovered new exit (range 13) 1325 | -10/Mines | Learned Materials interactive machine intel 1328 | -10/Mines | Found a damaged Exp. Sensor Array with a note attached 1332 | -10/Mines | Found Prototype Device 1661 | -10/Mines | Assembled infested the area 1666 | -10/Mines | Assisted by a Guerilla fighting off Assembled 2054 | -10/Mines | Assisted by bots powering up and referring to "LRC-V3" 2149 | -10/Mines | Discovered new exit (range 6) 2321 | -10/Mines | Core integrity fell below 50% 2557 | -10/Mines | Met a Derelict who couldn't figure out how to use a Trap Extractor 2609 | -10/Mines | Deemed a non-threat by the Exiles lab entrance 2609 | -10/Mines | Discovered new exit (range 5) 2710 | -10/Mines | Entered Exiles 2725 | -10/Exiles | Discovered new exit (range 15) 2737 | -10/Exiles | Met 8R-AWN 2751 | -10/Exiles | Met EX-HEX 2784 | -10/Exiles | Met EX-BIN 2859 | -10/Exiles | Met EX-DEC 2869 | -10/Exiles | Learned location of Zion (-6) 2918 | -10/Exiles | Visited The Gauntlet 3008 | -10/Exiles | Discovered new exit (range 10) 3016 | -10/Exiles | Entered Mines 3060 | -9/Mines | Met a Derelict bent on vengeance 3169 | -9/Mines | A weapon hastily lodged in a ceiling crevice suddenly fell to the ground 3286 | -9/Mines | Discovered new exit (range 5) 3336 | -9/Mines | Core integrity fell below 20% 3442 | -9/Mines | Discovered new exit (range 5) 3472 | -9/Mines | Entered Materials 3472 | -8/Materials | Evolved 4 slots: Utility x3, Weapon x1 3473 | -8/Materials | Loaded intel: 19 interactive machine locations 3568 | -8/Materials | Lost 3 parts (1n2w) 3947 | -8/Materials | Repaired Imp. Treads 3987 | -8/Materials | Repaired Minigun 4038 | -8/Materials | Repaired Adv. Heat Sink 4345 | -8/Materials | Build established: Scavenger-Skirmisher 4899 | -8/Materials | Build established: Hauler-Tank 4907 | -8/Materials | Discovered new exit (range 13) 5250 | -8/Materials | Identified Exp. Sensor Array 5435 | -8/Materials | Lost 6 parts (2n1u3w) 5602 | -8/Materials | Central database locked down 5695 | -8/Materials | Build established: Scavenger-Tank 5797 | -8/Materials | Discovered new exit (range 8) 6279 | -8/Materials | Discovered new exit (range 6) 6392 | -8/Materials | Entered Factory 6392 | -7/Factory | Evolved 2 slots: Utility x2 6685 | -7/Factory | Build established: Scavenger-Skirmisher 7378 | -7/Factory | Destroyed 7 combat bots 7408 | -7/Factory | Garrison activated, responded to threat 7458 | -7/Factory | Lost 4 parts (2n2w) 8074 | -7/Factory | Identified exit to Lower Caves 8356 | -7/Factory | Build established: Hauler-Skirmisher 8392 | -7/Factory | First assault squad dispatched 8396 | -7/Factory | Repaired Gauss Rifle 8738 | -7/Factory | Garrison activated, responded to threat 8773 | -7/Factory | Entered Lower Caves 8909 | -7/Lower Caves | Learned Factory terminal intel 9636 | -7/Lower Caves | Found Alien Artifact 9749 | -7/Lower Caves | Discovered new exit (range 12) 9750 | -7/Lower Caves | Encountered a Warlord checkpoint 9767 | -7/Lower Caves | Identified exit to Lower Caves 9807 | -7/Lower Caves | Attacked by a delusional Derelict stockpiling parts 10518 | -7/Lower Caves | Build established: Hauler-Mutant 11088 | -7/Lower Caves | Entered another Lower Caves area 11271 | -7/Lower Caves | Encountered a Warlord checkpoint 11396 | -7/Lower Caves | Build established: Hauler-Skirmisher 11425 | -7/Lower Caves | Found Prototype Device 11626 | -7/Lower Caves | Discovered new exit (range 20) 11658 | -7/Lower Caves | Found Imp. Powered Armor 11751 | -7/Lower Caves | Identified exit to Data Miner 11910 | -7/Lower Caves | Build established: Hauler-Mutant 12187 | -7/Lower Caves | Entered Data Miner 12187 | -7/Data Miner | Discovered new exit (range 6) 12215 | -7/Data Miner | Met Data Miner 12261 | -7/Data Miner | Learned location of Section 7 (-3) 12261 | -7/Data Miner | Acquired the access code to Warlord's prototype stash 12295 | -7/Data Miner | Received God Mode back door access code from Data Miner 12588 | -7/Data Miner | Data Conduit disabled 12701 | -7/Data Miner | Found Prototype Device 12701 | -7/Data Miner | Identified Exp. Thermal Shield 12797 | -7/Data Miner | Identified exit to Proximity Caves 12798 | -7/Data Miner | Entered Proximity Caves 12859 | -6/Proximity Caves | Identified exit to Factory 13536 | -6/Proximity Caves | Core integrity fell below 50% 13569 | -6/Proximity Caves | Spotted B-75 Beast 13681 | -6/Proximity Caves | Learned 8 Factory zone layouts 13984 | -6/Proximity Caves | Attracted the attention of an 0b10 outpost 14072 | -6/Proximity Caves | Build established: Hauler-Skirmisher 14454 | -6/Proximity Caves | Build established: Hauler-Mutant 14917 | -6/Proximity Caves | Found Prototype Launcher 14917 | -6/Proximity Caves | Identified Tesla Bomb Launcher 14923 | -6/Proximity Caves | Found Tesla Bomb Launcher 14927 | -6/Proximity Caves | Found Tesla Bomb Launcher 14939 | -6/Proximity Caves | Found Prototype Launcher 14939 | -6/Proximity Caves | Identified Scatter Rocket Array 14948 | -6/Proximity Caves | Found Mni. Smartbomb Launcher 14950 | -6/Proximity Caves | Found Mni. Smartbomb Launcher 15220 | -6/Proximity Caves | Identified Heart of Steel 15486 | -6/Proximity Caves | Build established: Scavenger-Skirmisher 15560 | -6/Proximity Caves | Entered Factory 15560 | -6/Factory | Accompanied by 2 allies 15560 | -6/Factory | Evolved 2 slots: Propulsion x2 15561 | -6/Factory | Identified exit to Lower Caves 15561 | -6/Factory | Identified exit to Factory 15562 | -6/Factory | Loaded intel: 20 terminal locations 15875 | -6/Factory | Repaired Exp. Thermal Shield? 16210 | -6/Factory | Lost 3 parts (1p2w) 16235 | -6/Factory | Identified Dimensional Node Initializer 16260 | -6/Factory | First assault squad dispatched 16409 | -6/Factory | Discovered exit to Factory (range 12) 16456 | -6/Factory | Destroyed 8 combat bots 16468 | -6/Factory | Lost 4 parts (2u2w) 16472 | -6/Factory | Repaired Cmb. Airjet 16568 | -6/Factory | Repaired Cmb. Airjet 16581 | -6/Factory | Spotted B-75 Beast 16607 | -6/Factory | Destroyed B-75 Beast 16660 | -6/Factory | Build established: Scavenger-Mutant 16823 | -6/Factory | Fabricated Combat Drone Bay (x1) 16872 | -6/Factory | Local fabrication network quarantined 16907 | -6/Factory | Fabricated Combat Drone Bay? 16942 | -6/Factory | Found Powered Armor 17097 | -6/Factory | Found Prototype Launcher 17097 | -6/Factory | Identified Rocket Array 17102 | -6/Factory | Entered Lower Caves 17128 | -6/Lower Caves | Learned location of 1 exit from Factory 17130 | -6/Lower Caves | Learned location of 1 exit from Factory 17130 | -6/Lower Caves | Learned Extension emergency access door positions 17130 | -6/Lower Caves | Learned Factory terminal intel 17130 | -6/Lower Caves | Learned Armory terminal intel 17308 | -6/Lower Caves | Attracted the attention of an 0b10 checkpoint 17340 | -6/Lower Caves | Encountered a Warlord checkpoint 17394 | -6/Lower Caves | Learned Factory emergency access door positions 17623 | -6/Lower Caves | Discovered new exit (range 16) 17633 | -6/Lower Caves | Identified exit to Lower Caves 17674 | -6/Lower Caves | Entered another Lower Caves area 17698 | -6/Lower Caves | Discovered exit to Factory (range 15) 17773 | -6/Lower Caves | Learned Factory security intel 17789 | -6/Lower Caves | Learned Factory emergency access door positions 17930 | -6/Lower Caves | Attracted the attention of an 0b10 checkpoint 18052 | -6/Lower Caves | Acquired the password to a Derelict Tinkerer's latest research 18067 | -6/Lower Caves | Discovered new exit (range 10) 18072 | -6/Lower Caves | Identified exit to Zion 18080 | -6/Lower Caves | Encountered a Warlord checkpoint 18136 | -6/Lower Caves | Entered Zion 18160 | -6/Zion | System corruption cleaned by Quarantine Array 18200 | -6/Zion | Found CR-A16's Pointy Stick 18233 | -6/Zion | Discovered new exit (range 16) 18305 | -6/Zion | Given the Hacking Drone Bay 18422 | -6/Zion | Received a hallucinogenic algorithm 18659 | -6/Zion | Given A8's code to call for help 18715 | -6/Zion | Learned location of Warlord (-4) 19008 | -6/Zion | Discovered new exit (range 4) 19008 | -6/Zion | Saw the warning signs outside the Deep Caves entrance 19273 | -6/Zion | Identified exit to Deep Caves 19273 | -6/Zion | Entered Deep Caves 19364 | -6/Deep Caves | Z-Facility disabled 19525 | -6/Deep Caves | Found Prototype Protection 19525 | -6/Deep Caves | Identified Zio. Weapon Casing 19803 | -6/Deep Caves | Attacked by Z-Imprinter 19859 | -6/Deep Caves | Destroyed Z-Imprinter 19865 | -6/Deep Caves | Found Prototype Device 19865 | -6/Deep Caves | Identified Zio. Metafield Generator 19887 | -6/Deep Caves | Lost 4 parts (1p1n1u1w) 20031 | -6/Deep Caves | Found Zio. Weapon Casing 20061 | -6/Deep Caves | Found Zio. Weapon Casing 20164 | -6/Deep Caves | Found Prototype Protection 20164 | -6/Deep Caves | Identified Zio. Heavy Carapace 20400 | -6/Deep Caves | Discovered new exit (range 44) 20590 | -6/Deep Caves | Spotted as-76586 20618 | -6/Deep Caves | Destroyed as-76586 20620 | -6/Deep Caves | Found GOLEM Unit 20647 | -6/Deep Caves | Lost 3 parts (1p1n1u) 20956 | -6/Deep Caves | Found Zio. Weapon Casing 21093 | -6/Deep Caves | Exposed GOLEM chamber 21095 | -6/Deep Caves | Found GOLEM Unit 21100 | -6/Deep Caves | Found GOLEM Unit 21384 | -6/Deep Caves | Triggered Deep Caves wall 21394 | -6/Deep Caves | Found GOLEM Unit 21414 | -6/Deep Caves | Core integrity fell below 50% 21450 | -6/Deep Caves | Destroyed 31 combat bots 21454 | -6/Deep Caves | Lost 6 parts (4n1u1w) 21462 | -6/Deep Caves | Spotted AS-02871 21487 | -6/Deep Caves | Found GOLEM Unit 21495 | -6/Deep Caves | Found GOLEM Unit 21499 | -6/Deep Caves | Spotted AS-95914 21517 | -6/Deep Caves | Destroyed AS-02871 21732 | -6/Deep Caves | Found Surveybot 24 Chip 21737 | -6/Deep Caves | Found Unknown Device 21758 | -6/Deep Caves | Identified exit to Proximity Caves 21761 | -6/Deep Caves | Entered Proximity Caves 21783 | -5/Proximity Caves | Build established: Hauler-Golem 22086 | -5/Proximity Caves | Spotted B-75 Beast 22095 | -5/Proximity Caves | Destroyed B-75 Beast 22446 | -5/Proximity Caves | Attracted the attention of an 0b10 checkpoint 22486 | -5/Proximity Caves | Destroyed 8 combat bots 22659 | -5/Proximity Caves | Discovered exit to Factory (range 13) 22678 | -5/Proximity Caves | Entered Factory 22678 | -5/Factory | Evolved 2 slots: Power x1, Utility x1 22679 | -5/Factory | Identified exit to Extension 22679 | -5/Factory | Identified exit to Factory 22682 | -5/Factory | Loaded intel: 21 terminal locations 22967 | -5/Factory | Repaired Lrg. Storage Unit 23696 | -5/Factory | Discovered new exit (range 16) 23796 | -5/Factory | Identified exit to Upper Caves 24158 | -5/Factory | Discovered exit to Upper Caves (range 4) 24392 | -5/Factory | Entered Extension 24483 | -5/Extension | Rescued a captive Derelict 24484 | -5/Extension | Rescued a captive Derelict 24514 | -5/Extension | Rescued A7 24610 | -5/Extension | Rescued a captive Derelict 24688 | -5/Extension | Rescued a captive Derelict 24692 | -5/Extension | First assault squad dispatched 24699 | -5/Extension | Rescued a captive Derelict 24700 | -5/Extension | Rescued a captive Derelict 24755 | -5/Extension | Spotted B-75 Beast 24763 | -5/Extension | Spotted B-75 Beast 24775 | -5/Extension | Revealed the true nature of CR-A16's Pointy Stick 24778 | -5/Extension | Destroyed B-75 Beast 24804 | -5/Extension | P-70 Sage assimilated allied FZ-HIW(g) 24821 | -5/Extension | Core integrity fell below 50% 24851 | -5/Extension | Lost 5 parts (1p2n2w) 24858 | -5/Extension | Destroyed B-75 Beast 24909 | -5/Extension | Extracted ID and sensor layout for unrecognized location from A7's data core 25095 | -5/Extension | Rescued a captive Derelict 25096 | -5/Extension | Rescued a captive Derelict 25179 | -5/Extension | Rescued a captive Derelict 25181 | -5/Extension | Rescued a captive Derelict 25263 | -5/Extension | Rescued a captive Derelict 25418 | -5/Extension | Discovered exit to Factory (range 10) 25419 | -5/Extension | Discovered new exit (range 6) 25430 | -5/Extension | Identified exit to Cetus 25440 | -5/Extension | Entered Cetus 25440 | -5/Cetus | Accompanied by 8 allies 25462 | -5/Cetus | Spotted Cetus Guard 25462 | -5/Cetus | Spotted Cetus Guard 25469 | -5/Cetus | Destroyed Cetus Guard 25469 | -5/Cetus | Destroyed Cetus Guard 25469 | -5/Cetus | Spotted Cetus Guard 25470 | -5/Cetus | Destroyed Cetus Guard 25471 | -5/Cetus | Destroyed Cetus Guard 25536 | -5/Cetus | Build established: Scavenger-Mutant 25548 | -5/Cetus | Heart of Steel transformed into Warbot 25562 | -5/Cetus | Cetus Manufacturing Module disabled 25608 | -5/Cetus | Central database locked down 25679 | -5/Cetus | Discovered new exit (range 15) 25712 | -5/Cetus | Entered Archives 25712 | -5/Archives | Accompanied by 7 allies (Warbot) 25796 | -5/Archives | Discovered exit to Factory (range 14) 25866 | -5/Archives | Discovered new exit (range 15) 25897 | -5/Archives | Discovered new exit (range 16) 26990 | -5/Archives | Entered Hub_04(d) 26990 | -5/Hub_04(d) | Accompanied by 7 allies (Warbot) 27160 | -5/Hub_04(d) | Garrison activated, responded to threat 27387 | -5/Hub_04(d) | Garrison activated, responded to threat 27397 | -5/Hub_04(d) | Discovered exit to Factory (range 5) 27521 | -5/Hub_04(d) | Spotted B-75 Beast 27529 | -5/Hub_04(d) | Destroyed B-75 Beast 27674 | -5/Hub_04(d) | Network Hub disabled 27676 | -5/Hub_04(d) | Entered Factory 27676 | -4/Factory | Accompanied by 1 ally (Warbot) 27676 | -4/Factory | Evolved 2 slots: Utility x2 27736 | -4/Factory | Repaired Lrg. Storage Unit 27959 | -4/Factory | Repaired Com. Particle Reactor 28094 | -4/Factory | Build established: Scavenger-Tank 28328 | -4/Factory | Repaired Imp. KE Penetrator 28439 | -4/Factory | Repaired Centrium Medium Armor Plating 28847 | -4/Factory | Lost 3 parts (1p1u1w) 28859 | -4/Factory | Identified exit to Upper Caves 29100 | -4/Factory | System corruption reached 10% 29177 | -4/Factory | Lost 5 parts (1p1n1u2w) 29192 | -4/Factory | Garrison activated, responded to threat 29224 | -4/Factory | First assault squad dispatched 29245 | -4/Factory | Lost 4 parts (1p2u1w) 29253 | -4/Factory | Entered Upper Caves 29383 | -4/Upper Caves | Build established: Hacker-Mutant 29700 | -4/Upper Caves | Crushed by falling debris 29734 | -4/Upper Caves | Spotted B-86 Titan 29802 | -4/Upper Caves | Core integrity fell below 50% 29807 | -4/Upper Caves | Destroyed B-86 Titan 29829 | -4/Upper Caves | Build established: Hacker-Golem 30382 | -4/Upper Caves | Attracted the attention of an 0b10 outpost 30554 | -4/Upper Caves | Learned location of Testing (-2) 30590 | -4/Upper Caves | Learned 4 Research zone layouts 30634 | -4/Upper Caves | Discovered new exit (range 9) 30646 | -4/Upper Caves | Identified exit to Upper Caves 30649 | -4/Upper Caves | Entered another Upper Caves area 30649 | -4/Upper Caves | Accompanied by 1 ally 30946 | -4/Upper Caves | Attracted the attention of an 0b10 checkpoint 31066 | -4/Upper Caves | Encountered a Warlord checkpoint 31091 | -4/Upper Caves | Discovered new exit (range 8) 31101 | -4/Upper Caves | Identified exit to Warlord 31102 | -4/Upper Caves | Entered Warlord 31118 | -4/Warlord | System corruption reached 30% 31163 | -4/Warlord | System corruption cleaned by Quarantine Array 31198 | -4/Warlord | Build established: Scavenger-Mutant 31336 | -4/Warlord | Learned Armory security intel 31336 | -4/Warlord | Learned Armory scanalyzer intel 31336 | -4/Warlord | Learned Research garrison access intel 31692 | -4/Warlord | Received a Watcher feed algorithm from an ecstatic Tinkerer 31876 | -4/Warlord | Warlord's base attacked by MAIN.C 31893 | -4/Warlord | Found Prototype Energy Gun 31893 | -4/Warlord | Identified Vortex Rail 31901 | -4/Warlord | Found Prototype Energy Cannon 31901 | -4/Warlord | Identified Vortex Driver 31908 | -4/Warlord | Found Vortex Driver 32043 | -4/Warlord | Found Prototype Device 32043 | -4/Warlord | Identified Minesniffer Drone Bay 32190 | -4/Warlord | Met Warlord 32210 | -4/Warlord | Opened Warlord's prototype stash 32215 | -4/Warlord | Found Prototype Reactor 32215 | -4/Warlord | Identified Vortex Chain Reactor 32223 | -4/Warlord | Found Prototype Device 32223 | -4/Warlord | Identified Exp. Phase Shifter 32226 | -4/Warlord | Warlord forces counterattacked 32247 | -4/Warlord | Found Prototype Processor 32247 | -4/Warlord | Identified Exp. Target Analyzer 32252 | -4/Warlord | Found Prototype Hackware 32383 | -4/Warlord | Opened side exit 32415 | -4/Warlord | Discovered new exit (range 9) 32424 | -4/Warlord | Identified exit to Proximity Caves 32425 | -4/Warlord | Entered Proximity Caves 32471 | -3/Proximity Caves | Identified Ghost Barrier 32474 | -3/Proximity Caves | Attracted the attention of an 0b10 checkpoint 32594 | -3/Proximity Caves | Identified exit to Research 32916 | -3/Proximity Caves | Entered Research 32916 | -3/Research | Evolved 2 slots: Utility x2 32918 | -3/Research | Loaded intel: 4 garrison access locations 33157 | -3/Research | Destroyed 8 combat bots 33160 | -3/Research | Lost 6 parts (3u3w) 33398 | -3/Research | Spotted B-86 Titan 33639 | -3/Research | Fabricated Cmb. Antigrav System (x2) 33666 | -3/Research | First assault squad dispatched 33731 | -3/Research | Fabricated Cmb. Antigrav System? 33785 | -3/Research | System corruption reached 10% 33815 | -3/Research | Local fabrication network quarantined 33818 | -3/Research | Fabricated Cmb. Antigrav System? 33836 | -3/Research | Lost 4 parts (2p1u1w) 33865 | -3/Research | Identified exit to Garrison 33871 | -3/Research | Entered Garrison 33874 | -3/Garrison | Triggered checkpoint 33923 | -3/Garrison | Triggered checkpoint 33937 | -3/Garrison | Spotted B-86 Titan 33958 | -3/Garrison | Discovered new exit (range 10) 33961 | -3/Garrison | Identified exit to Quarantine 33961 | -3/Garrison | Entered Quarantine 34023 | -3/Quarantine | Found Alien Artifact 34023 | -3/Quarantine | Identified Matter Drive 34080 | -3/Quarantine | Found Alien Artifact 34119 | -3/Quarantine | Found Alien Artifact 34150 | -3/Quarantine | Cryocooling Duct disabled 34163 | -3/Quarantine | Identified Phase Redirector 34163 | -3/Quarantine | Identified Core Reset Matrix 34165 | -3/Quarantine | Ambient heat levels rising (+20) 34165 | -3/Quarantine | Non-combat units ordered to evacuate 34207 | -3/Quarantine | Found Alien Energy Cannon 34288 | -3/Quarantine | Found Alien Artifact 34429 | -3/Quarantine | Found Alien Artifact 34490 | -3/Quarantine | Found Alien Artifact 34492 | -3/Quarantine | Found Alien Artifact 34493 | -3/Quarantine | Found Alien Artifact 34594 | -3/Quarantine | Cryocooling Duct disabled 34609 | -3/Quarantine | Ambient heat levels rising (+20) 34609 | -3/Quarantine | Combat units ordered to evacuate 34675 | -3/Quarantine | Lost 3 parts (1p1u1w) 34709 | -3/Quarantine | Quarantine Guard activated 34719 | -3/Quarantine | Core integrity fell below 50% 34730 | -3/Quarantine | Identified Transdimensional Reconstructor (x3) 34730 | -3/Quarantine | Warped through subspace 34760 | -3/Quarantine | Lost 7 parts (1p1n3u2w) 34935 | -3/Quarantine | Build established: Hacker-Mutant 35058 | -3/Quarantine | Spotted Quarantine Guard 35084 | -3/Quarantine | Destroyed Quarantine Guard 35109 | -3/Quarantine | Identified Core Cannon 35109 | -3/Quarantine | Used Core Reset Matrix 35113 | -3/Quarantine | Detected hypermatrix surge 35113 | -3/Quarantine | Emitted hypermatrix ping 35113 | -3/Quarantine | Sensed 8 artifacts in vicinity 35118 | -3/Quarantine | Assembled emerged from beneath the floor 35251 | -3/Quarantine | Met incapacitated Sigix Warrior 35251 | -3/Quarantine | Lockdown squad dispatched 35254 | -3/Quarantine | Acquired the access code to the Sigix quarantine chamber 35256 | -3/Quarantine | Unlocked Sigix quarantine chamber 35261 | -3/Quarantine | Central database locked down 35434 | -3/Quarantine | Spotted Quarantine Guard 35496 | -3/Quarantine | Destroyed Quarantine Guard 35536 | -3/Quarantine | Build established: Scavenger-Mutant 35543 | -3/Quarantine | Spotted Quarantine Guard 35615 | -3/Quarantine | Destroyed Quarantine Guard 35623 | -3/Quarantine | Lost 5 parts (2p2n1u) 35767 | -3/Quarantine | Spotted Quarantine Guard 35790 | -3/Quarantine | Destroyed Quarantine Guard 36069 | -3/Quarantine | Build established: Scavenger-Gunner 36081 | -3/Quarantine | Spotted Quarantine Guard 36125 | -3/Quarantine | Destroyed Quarantine Guard 36153 | -3/Quarantine | Lost 3 parts (2u1w) 36230 | -3/Quarantine | Spotted Quarantine Guard 36272 | -3/Quarantine | Destroyed Quarantine Guard 36359 | -3/Quarantine | Spotted Fortress 36362 | -3/Quarantine | Core integrity fell below 20% 36382 | -3/Quarantine | Warped through subspace 36431 | -3/Quarantine | Discovered new exit (range 6) 36431 | -3/Quarantine | Spotted Quarantine Guard 36447 | -3/Quarantine | Destroyed Quarantine Guard 36474 | -3/Quarantine | Identified exit to Section 7 36475 | -3/Quarantine | Entered Section 7 36476 | -3/Section 7 | Emitted hypermatrix ping 36476 | -3/Section 7 | Sensed 21 artifacts in vicinity 36481 | -3/Section 7 | Assembled emerged from beneath the floor 36524 | -3/Section 7 | Found Integrated Dissipator 36524 | -3/Section 7 | Installed Integrated Dissipator, increased core heat dissipation (+20) 36583 | -3/Section 7 | Build established: Scavenger-Mutant 36780 | -3/Section 7 | Destroyed by G-67 Veteran with Electrolaser Last Messages --------------- 36765_ Destroyed Hvy. Shock Bomb Launcher. 36765_ S-43 Plague shuts down. 36766_ P-80 Master resets R-10 Processor, system corruption cleaned. 36766_ P-80 Master resets G-67 Veteran, system corruption cleaned. 36769_ Unknown Energy Gun melted. 36769_ G-67 Veteran destroyed. 36769_ Destroyed Unknown Wheel. 36770_ Acquired 85 matter. 36771_ Adv. Medium Treads destroyed. 36771_ P-80 Master resets G-67 Veteran, system corruption cleaned. 36773_ System corrupted: Component data lost. 36773_ P-80 Master resets S-43 Plague, system corruption cleaned. 36775_ P-80 Master resets G-67 Veteran, system corruption cleaned. 36775_ Adv. Cooling System destroyed. 36776_ S-43 Plague destroyed. 36776_ Adv. Medium Treads destroyed. 36777_ Quantum Rifle destroyed. 36777_ P-80 Master resets G-67 Veteran, system corruption cleaned. 36778_ U-05 Engineer lays Concrete. [Achievement: I Was Wrong!] Map ----- +----------------------------------------------------+ | ?????????????????????????????????????????????????? | | ?????????????????????????????????????????????????? | | ?????????????????????????????????????????????????? | | ?????????????????????????????????????????????????? | | ?????????????????????????????????????????????????? | | ?????????????????????????????????????????????????? | | ?????????????????????????????????????????????????? | | ?????????????????????????????????????????????????? | | ?????????????????????????????????????????????!???? | | ?????????????????????????????????????????????????? | | ?????????????????????????????????????????????????? | | ?????????????????????????????????????????????????? | | ?????????????????????????????????????????????????? | | ?????????????????????????????????????????????????? | | ????????????????????########?????????????????????? | | ????????????????????? #?????????????????????? | | ????????????????????? #???????#?????????????? | | ?????????????????????? #?????? #?????????????? | | ?????????????????????? #????? #?????????????? | | ??????????????????????# #???? #?????????????? | | ??????????????????????# #??? ##????????????? | | ????????############### #### ;###;?????????? | | ######??# =* ?????????? | | "T"""#??# %!g s ????????? | | " """#### a [%%s[ p p????????? | | # u R @=%g! % ????????? | | # ################p/######????????????? | | " """ # # % # #????????????? | | " """" # # """ "" #! #????????????? | | " """ # # "" """ # """"" #????????????? | | " + #% """ R" # """"" #????????????? | | # + ! "" "" #] """""??????????????? | | ]! # # "" # ??????????????? | | ]! #### # = % # """ """??????????????? | | !! #??# # # """S"""??????????????? | | #??# ########"#"# ########???????????????? | | ####+##############??????????????????????? | | ###+###### #??????????????????????????? | | ??# #????# #??????????????????????????? | | ??# #????# #??????????????????????????? | | ??# #????# #??????????????????????????? | | ??# #????# #??????????????????????????? | | ??# ###### """"" #??????????????????????????? | | ??# / " "" #??????????????????????????? | | ??######## """ ????????????????????????????? | | ??????#### "!" ???????????????????????????? | | ??????# + """ #??????????????????????????? | | ??????# ## #??????????????????????????? | | ??????# ## #??????????????????????????? | | ????###/########+######??????????????????????????? | +----------------------------------------------------+ Best States ------------- Heat Dissipation 128 Coolant Potential 120 Energy Generation 55 Energy Capacity 2160 Matter Stores 300 Matter Capacity 300 Sight Range 22 Robot Scan Range 30 Terrain Scan Density 10 Power Amplification 40 Additional Mass Support 16 Base Temperature (-) 200 Armor Coverage 625 Resistance: KI 30 Resistance: TH 30 Weapon Shielding 100 Weapon Cycling 20 Phase Shifting 5 Evasion (%) 58 Target Analysis 12 Recoil Reduction 4 Matter Filtering 50 Offensive Hacking 38 Defensive Hacking 34 Item Schematics ----------------- Cmb. Antigrav System | -3/Quarantine | Hacked Robot Schematics ------------------ None Fabricated ------------ Combat Drone Bay | x1 | -6/Factory Combat Drone Bay | x1 | -6/Factory Cmb. Antigrav System | x2 | -3/Research Cmb. Antigrav System | x2 | -3/Research Cmb. Antigrav System | x2 | -3/Research Alien Tech Used ----------------- Matter Drive Transdimensional Reconstructor Core Reset Matrix Integrated Dissipator Achievements -------------- I Was Wrong! Challenges ------------ None Game ------ Seed LongswordNeutronPick Manual? 0 Play Time 06:04:55 Cumulative 128.7 hours Start 2020.10.28 @ 12:17:20 End 2020.10.29 @ 13:21:23 Sessions 3 Manual Loads 0 Difficulty Rogue Special Mode None Game No. 43 Rogue 28 Adventurer 15 Explorer 0 Win Type - Total 3 Types 1/0/1/1/0/0/0/0/0 Lore% 76 Gallery% 73 Achievement% 61 Wizard Run 0 Options --------- ASCII 0 Keyboard 0 Movement Numpad Keybinds 0 Fullscreen 1 Font 18/SmallcapsGlow Map View 76x50 Tactical HUD 1 Map Filters NONE Filters NONE Steam 1 RUN: 1bd57cbc-d29a-4ecc-8cfd-380bdd6ad606